{"text_format":"1","workbook":"xlsx","n_sheets":14,"sheets":["Calc","ANSI","Idiomas","Cod","Teclado","Teclas0","Teclas1","Teclas2","Teclas3","Teclas4","Teclas5","Teclas6","Teclas7","Teclas8"],"not_rendered":{"charts":0,"images":1,"macros":1,"external_links":0,"defined_names":35,"comments":0,"pivot_tables":0},"unopened":[],"bounds":{"document_bytes":16777216,"sheet_cells":100000,"rows_first":2000,"rows_last":500,"rows_between":2000,"halvings":0,"cell_chars":16384,"cell_head_chars":4096},"cells_cut":0,"cells_raw":0,"read":"whole","date_system":"1900"}

{"sheet":"Calc","index":0,"n_rows":103,"n_cols":104,"rows_kept":103,"cut":false,"hidden":false,"merged":[[32,5,32,15],[40,5,40,15],[12,5,12,15],[14,5,14,15],[23,5,23,15],[13,5,13,15],[39,5,39,15],[38,5,38,15],[46,77,46,88],[48,77,48,88],[14,40,14,54],[15,5,15,15],[16,5,16,15],[17,5,17,15],[25,5,25,15],[18,5,18,15],[19,5,19,15],[20,5,20,15],[21,5,21,15],[22,5,22,15],[29,5,29,15],[24,5,24,15],[31,5,31,15],[47,77,47,88],[12,42,12,49],[12,58,12,73],[47,64,47,70],[33,5,33,15],[26,5,26,15],[34,5,34,15],[41,5,41,15],[35,5,35,15],[27,5,27,15],[28,5,28,15],[30,5,30,15],[42,5,42,15],[43,5,43,15],[44,5,44,15],[36,5,36,15],[37,5,37,15]]}
[null,null,null,null,null,null,null,null,null,null,null,null,null,null,null,null,null,null,null,null,0,null,null,null,null,null,null,null,null,null,null,null,null,null,null,null,null,null,null,null,null,null,null,null,null,null,null,null,null,null,null,null,null,null,null,null,null,null,null,null,null,null,null,null,null,null,null,null,null,null,null,null,null,null,null,null,null,null,null,null,null,null,null,null,null,null,null,null,null,null,null,null,null,null,null,null,null,null,null,null,null," "]
[null,null,null,null,null,null,null,null,null,null,null,null,null,null,null,null,null,null,null,null,null,null,null,null,null,null,null,null,null,null,null,null,null,null,null,null,null,null,null,null,null,null,null,null,null,null,null,null,null,null,null,null,null,null,null,null,null,null,null,null,null,null,null,null,null,null,null,null,null,null,null,null,null,null,null,null,null,null,null,null,null,null,null,null,null,null,null,null,null,null,null,null,null,null,null,null,null,null,null,null,"TeclaGP"," "]
[null,null,null,null,null,null,null,null,null,null,null,null,null,null,null,null,null,null,null,null,null,null,null,null,null,null,null,null,null,null,null,null,null,null,null,null,null,null,null,null,null,null,null,null,null,null,null,null,null,null,null,null,null,null,null,null,null,null,null,null,null,null,null,null,null,null,null,null,null,null,null,null,null,null,null,null,null,null,null,null,null,null,null,null,null,null,null,null,null,null,null,null,null,null,null,null,null,null,null,null,"TeclaRP"," "]
[null,null,null,null,{"$f":"VLOOKUP(CODE(E11),segmentos,2,FALSE)","v":0},null,null,null,null,null,{"$f":"VLOOKUP(CODE(K11),segmentos,2,FALSE)","v":0},null,null,null,null,null,{"$f":"VLOOKUP(CODE(Q11),segmentos,2,FALSE)","v":0},null,null,null,null,null,{"$f":"VLOOKUP(CODE(W11),segmentos,2,FALSE)","v":0},null,null,null,null,null,{"$f":"VLOOKUP(CODE(AC11),segmentos,2,FALSE)","v":0},null,null,null,null,null,{"$f":"VLOOKUP(CODE(AI11),segmentos,2,FALSE)","v":0},null,null,null,null,null,{"$f":"VLOOKUP(CODE(AO11),segmentos,2,FALSE)","v":0},null,null,null,null,null,{"$f":"VLOOKUP(CODE(AU11),segmentos,2,FALSE)","v":0},null,null,null,null,null,{"$f":"VLOOKUP(CODE(BA11),segmentos,2,FALSE)","v":0},null,null,null,null,null,{"$f":"VLOOKUP(CODE(BG11),segmentos,2,FALSE)","v":0},null,null,null,null,null,{"$f":"VLOOKUP(CODE(BM11),segmentos,2,FALSE)","v":0},null,null,null,null,null,{"$f":"VLOOKUP(CODE(BS11),segmentos,2,FALSE)","v":0},null,null,null,null,null,{"$f":"VLOOKUP(CODE(BY11),segmentos,2,FALSE)","v":0},null,null,null,null,null,{"$f":"VLOOKUP(CODE(CE11),segmentos,2,FALSE)","v":0},null,null,null,null,null,{"$f":"VLOOKUP(CODE(CK11),segmentos,2,FALSE)","v":0},null,null,null,null,null,{"$f":"VLOOKUP(CODE(CQ11),segmentos,2,FALSE)","v":1},null,null,null,null,null,"Teclaes"," "]
[null,null,null,{"$f":"VLOOKUP(CODE(E11),segmentos,7,FALSE)","v":0},null,{"$f":"VLOOKUP(CODE(E11),segmentos,3,FALSE)","v":0},null,null,null,{"$f":"VLOOKUP(CODE(K11),segmentos,7,FALSE)","v":0},null,{"$f":"VLOOKUP(CODE(K11),segmentos,3,FALSE)","v":0},null,null,null,{"$f":"VLOOKUP(CODE(Q11),segmentos,7,FALSE)","v":0},null,{"$f":"VLOOKUP(CODE(Q11),segmentos,3,FALSE)","v":0},null,null,null,{"$f":"VLOOKUP(CODE(W11),segmentos,7,FALSE)","v":0},null,{"$f":"VLOOKUP(CODE(W11),segmentos,3,FALSE)","v":0},null,null,null,{"$f":"VLOOKUP(CODE(AC11),segmentos,7,FALSE)","v":0},null,{"$f":"VLOOKUP(CODE(AC11),segmentos,3,FALSE)","v":0},null,null,null,{"$f":"VLOOKUP(CODE(AI11),segmentos,7,FALSE)","v":0},null,{"$f":"VLOOKUP(CODE(AI11),segmentos,3,FALSE)","v":0},null,null,null,{"$f":"VLOOKUP(CODE(AO11),segmentos,7,FALSE)","v":0},null,{"$f":"VLOOKUP(CODE(AO11),segmentos,3,FALSE)","v":0},null,null,null,{"$f":"VLOOKUP(CODE(AU11),segmentos,7,FALSE)","v":0},null,{"$f":"VLOOKUP(CODE(AU11),segmentos,3,FALSE)","v":0},null,null,null,{"$f":"VLOOKUP(CODE(BA11),segmentos,7,FALSE)","v":0},null,{"$f":"VLOOKUP(CODE(BA11),segmentos,3,FALSE)","v":0},null,null,null,{"$f":"VLOOKUP(CODE(BG11),segmentos,7,FALSE)","v":0},null,{"$f":"VLOOKUP(CODE(BG11),segmentos,3,FALSE)","v":0},null,null,null,{"$f":"VLOOKUP(CODE(BM11),segmentos,7,FALSE)","v":0},null,{"$f":"VLOOKUP(CODE(BM11),segmentos,3,FALSE)","v":0},null,null,null,{"$f":"VLOOKUP(CODE(BS11),segmentos,7,FALSE)","v":0},null,{"$f":"VLOOKUP(CODE(BS11),segmentos,3,FALSE)","v":0},null,null,null,{"$f":"VLOOKUP(CODE(BY11),segmentos,7,FALSE)","v":0},null,{"$f":"VLOOKUP(CODE(BY11),segmentos,3,FALSE)","v":0},null,null,null,{"$f":"VLOOKUP(CODE(CE11),segmentos,7,FALSE)","v":0},null,{"$f":"VLOOKUP(CODE(CE11),segmentos,3,FALSE)","v":0},null,null,null,{"$f":"VLOOKUP(CODE(CK11),segmentos,7,FALSE)","v":0},null,{"$f":"VLOOKUP(CODE(CK11),segmentos,3,FALSE)","v":0},null,null,null,{"$f":"VLOOKUP(CODE(CQ11),segmentos,7,FALSE)","v":1},null,{"$f":"VLOOKUP(CODE(CQ11),segmentos,3,FALSE)","v":1},null,null,null,null,"Tecla<-"," "]
[null,null,null,null,{"$f":"VLOOKUP(CODE(E11),segmentos,8,FALSE)","v":0},null,null,{"$f":"IF(H11=\":\",1,0)","v":0},null,null,{"$f":"VLOOKUP(CODE(K11),segmentos,8,FALSE)","v":0},null,null,{"$f":"IF(N11=\":\",1,0)","v":0},null,null,{"$f":"VLOOKUP(CODE(Q11),segmentos,8,FALSE)","v":0},null,null,{"$f":"IF(T11=\":\",1,0)","v":0},null,null,{"$f":"VLOOKUP(CODE(W11),segmentos,8,FALSE)","v":0},null,null,{"$f":"IF(Z11=\":\",1,0)","v":0},null,null,{"$f":"VLOOKUP(CODE(AC11),segmentos,8,FALSE)","v":0},null,null,{"$f":"IF(AF11=\":\",1,0)","v":0},null,null,{"$f":"VLOOKUP(CODE(AI11),segmentos,8,FALSE)","v":0},null,null,{"$f":"IF(AL11=\":\",1,0)","v":0},null,null,{"$f":"VLOOKUP(CODE(AO11),segmentos,8,FALSE)","v":0},null,null,{"$f":"IF(AR11=\":\",1,0)","v":0},null,null,{"$f":"VLOOKUP(CODE(AU11),segmentos,8,FALSE)","v":0},null,null,{"$f":"IF(AX11=\":\",1,0)","v":0},null,null,{"$f":"VLOOKUP(CODE(BA11),segmentos,8,FALSE)","v":0},null,null,{"$f":"IF(BD11=\":\",1,0)","v":0},null,null,{"$f":"VLOOKUP(CODE(BG11),segmentos,8,FALSE)","v":0},null,null,{"$f":"IF(BJ11=\":\",1,0)","v":0},null,null,{"$f":"VLOOKUP(CODE(BM11),segmentos,8,FALSE)","v":0},null,null,{"$f":"IF(BP11=\":\",1,0)","v":0},null,null,{"$f":"VLOOKUP(CODE(BS11),segmentos,8,FALSE)","v":0},null,null,{"$f":"IF(BV11=\":\",1,0)","v":0},null,null,{"$f":"VLOOKUP(CODE(BY11),segmentos,8,FALSE)","v":0},null,null,{"$f":"IF(CB11=\":\",1,0)","v":0},null,null,{"$f":"VLOOKUP(CODE(CE11),segmentos,8,FALSE)","v":0},null,null,{"$f":"IF(CH11=\":\",1,0)","v":0},null,null,{"$f":"VLOOKUP(CODE(CK11),segmentos,8,FALSE)","v":0},null,null,{"$f":"IF(CN11=\":\",1,0)","v":0},null,null,{"$f":"VLOOKUP(CODE(CQ11),segmentos,8,FALSE)","v":0},null,null,{"$f":"IF(CT11=\":\",1,0)","v":0},null,null,"Tecla->"," "]
[null,null,null,{"$f":"VLOOKUP(CODE(E11),segmentos,6,FALSE)","v":0},null,{"$f":"VLOOKUP(CODE(E11),segmentos,4,FALSE)","v":0},null,null,null,{"$f":"VLOOKUP(CODE(K11),segmentos,6,FALSE)","v":0},null,{"$f":"VLOOKUP(CODE(K11),segmentos,4,FALSE)","v":0},null,null,null,{"$f":"VLOOKUP(CODE(Q11),segmentos,6,FALSE)","v":0},null,{"$f":"VLOOKUP(CODE(Q11),segmentos,4,FALSE)","v":0},null,null,null,{"$f":"VLOOKUP(CODE(W11),segmentos,6,FALSE)","v":0},null,{"$f":"VLOOKUP(CODE(W11),segmentos,4,FALSE)","v":0},null,null,null,{"$f":"VLOOKUP(CODE(AC11),segmentos,6,FALSE)","v":0},null,{"$f":"VLOOKUP(CODE(AC11),segmentos,4,FALSE)","v":0},null,null,null,{"$f":"VLOOKUP(CODE(AI11),segmentos,6,FALSE)","v":0},null,{"$f":"VLOOKUP(CODE(AI11),segmentos,4,FALSE)","v":0},null,null,null,{"$f":"VLOOKUP(CODE(AO11),segmentos,6,FALSE)","v":0},null,{"$f":"VLOOKUP(CODE(AO11),segmentos,4,FALSE)","v":0},null,null,null,{"$f":"VLOOKUP(CODE(AU11),segmentos,6,FALSE)","v":0},null,{"$f":"VLOOKUP(CODE(AU11),segmentos,4,FALSE)","v":0},null,null,null,{"$f":"VLOOKUP(CODE(BA11),segmentos,6,FALSE)","v":0},null,{"$f":"VLOOKUP(CODE(BA11),segmentos,4,FALSE)","v":0},null,null,null,{"$f":"VLOOKUP(CODE(BG11),segmentos,6,FALSE)","v":0},null,{"$f":"VLOOKUP(CODE(BG11),segmentos,4,FALSE)","v":0},null,null,null,{"$f":"VLOOKUP(CODE(BM11),segmentos,6,FALSE)","v":0},null,{"$f":"VLOOKUP(CODE(BM11),segmentos,4,FALSE)","v":0},null,null,null,{"$f":"VLOOKUP(CODE(BS11),segmentos,6,FALSE)","v":0},null,{"$f":"VLOOKUP(CODE(BS11),segmentos,4,FALSE)","v":0},null,null,null,{"$f":"VLOOKUP(CODE(BY11),segmentos,6,FALSE)","v":0},null,{"$f":"VLOOKUP(CODE(BY11),segmentos,4,FALSE)","v":0},null,null,null,{"$f":"VLOOKUP(CODE(CE11),segmentos,6,FALSE)","v":0},null,{"$f":"VLOOKUP(CODE(CE11),segmentos,4,FALSE)","v":0},null,null,null,{"$f":"VLOOKUP(CODE(CK11),segmentos,6,FALSE)","v":0},null,{"$f":"VLOOKUP(CODE(CK11),segmentos,4,FALSE)","v":0},null,null,null,{"$f":"VLOOKUP(CODE(CQ11),segmentos,6,FALSE)","v":1},null,{"$f":"VLOOKUP(CODE(CQ11),segmentos,4,FALSE)","v":1},null,null,null,null,"Teclav>"," ",null,{"$f":"IF(IFERROR(FIND(\":\",miRegDisplay),0)>0,miRegDisplay,\"\")","v":""}]
[null,null,null,null,{"$f":"VLOOKUP(CODE(E11),segmentos,5,FALSE)","v":0},null,null,{"$f":"IF(H11<>\"\",1,0)","v":0},null,null,{"$f":"VLOOKUP(CODE(K11),segmentos,5,FALSE)","v":0},null,null,{"$f":"IF(N11<>\"\",1,0)","v":0},null,null,{"$f":"VLOOKUP(CODE(Q11),segmentos,5,FALSE)","v":0},null,null,{"$f":"IF(T11<>\"\",1,0)","v":0},null,null,{"$f":"VLOOKUP(CODE(W11),segmentos,5,FALSE)","v":0},null,null,{"$f":"IF(Z11<>\"\",1,0)","v":0},null,null,{"$f":"VLOOKUP(CODE(AC11),segmentos,5,FALSE)","v":0},null,null,{"$f":"IF(AF11<>\"\",1,0)","v":0},null,null,{"$f":"VLOOKUP(CODE(AI11),segmentos,5,FALSE)","v":0},null,null,{"$f":"IF(AL11<>\"\",1,0)","v":0},null,null,{"$f":"VLOOKUP(CODE(AO11),segmentos,5,FALSE)","v":0},null,null,{"$f":"IF(AR11<>\"\",1,0)","v":0},null,null,{"$f":"VLOOKUP(CODE(AU11),segmentos,5,FALSE)","v":0},null,null,{"$f":"IF(AX11<>\"\",1,0)","v":0},null,null,{"$f":"VLOOKUP(CODE(BA11),segmentos,5,FALSE)","v":0},null,null,{"$f":"IF(BD11<>\"\",1,0)","v":0},null,null,{"$f":"VLOOKUP(CODE(BG11),segmentos,5,FALSE)","v":0},null,null,{"$f":"IF(BJ11<>\"\",1,0)","v":0},null,null,{"$f":"VLOOKUP(CODE(BM11),segmentos,5,FALSE)","v":0},null,null,{"$f":"IF(BP11<>\"\",1,0)","v":0},null,null,{"$f":"VLOOKUP(CODE(BS11),segmentos,5,FALSE)","v":0},null,null,{"$f":"IF(BV11<>\"\",1,0)","v":0},null,null,{"$f":"VLOOKUP(CODE(BY11),segmentos,5,FALSE)","v":0},null,null,{"$f":"IF(CB11<>\"\",1,0)","v":0},null,null,{"$f":"VLOOKUP(CODE(CE11),segmentos,5,FALSE)","v":0},null,null,{"$f":"IF(CH11<>\"\",1,0)","v":0},null,null,{"$f":"VLOOKUP(CODE(CK11),segmentos,5,FALSE)","v":0},null,null,{"$f":"IF(CN11<>\"\",1,0)","v":0},null,null,{"$f":"VLOOKUP(CODE(CQ11),segmentos,5,FALSE)","v":1},null,null,{"$f":"IF(CT11<>\"\",1,0)","v":1},null,null,"Teclao>"," "]
[null,null,null,null,null,null,null,null,null,null,null,null,null,null,null,null,null,null,null,null,null,null,null,null,null,null,null,null,null,null,null,null,null,null,null,null,null,null,null,null,null,null,null,null,null,null,null,null,null,null,null,null,null,null,null,null,null,null,null,null,null,null,null,null,null,null,null,null,null,null,null,null,null,null,null,null,null,null,null,null,null,null,null,null,null,null,null,null,null,null,null,null,null,null,null,null,null,null,null,null,"Tecla^>"," "]
[null,null,null,null,null,null,null,null,null,null,null,null,null,null,null,null,null,null,null,null,null,null,null,null,null,null,null,null,null,null,null,null,null,null,null,null,null,null,null,null,null,null,null,null,null,null,null,null,null,null,null,null,null,null,null,null,null,null,null,null,null,null,null,null,null,null,null,null,null,null,null,null,null,null,null,null,null,null,null,null,null,null,null,null,null,null,null,null,null,null,null,null,null,null,null,null,null,null,null,null,"TeclaTR"," "]
[null,null,null,null,{"$f":"IF(miFechaHora<>\"\",MID(SUBSTITUTE(miDisplay,\".\",\"\"),1,1),IF(LEN(miDisplay)>15,LEFT(RIGHT(miDisplay,16),1),\" \"))","v":" "},null,null,{"$f":"IF(miFechaHora=\"\",IF(miPunto=15,\".\",\"\"),\"\")","v":""},null,null,{"$f":"IF(miFechaHora<>\"\",MID(SUBSTITUTE(miDisplay,\".\",\"\"),2,1),IF(LEN(miDisplay)>14,LEFT(RIGHT(miDisplay,15),1),\" \"))","v":" "},null,null,{"$f":"IF(MID(miFechaHora,3,1)=\".\",\".\",IF(miPunto=14,\".\",\"\"))","v":""},null,null,{"$f":"IF(miFechaHora<>\"\",MID(SUBSTITUTE(miDisplay,\".\",\"\"),3,1),IF(LEN(miDisplay)>13,LEFT(RIGHT(miDisplay,14),1),\" \"))","v":" "},null,null,{"$f":"IF(miPunto=13,\".\",\"\")","v":""},null,null,{"$f":"IF(miFechaHora<>\"\",MID(SUBSTITUTE(miDisplay,\".\",\"\"),4,1),IF(LEN(miDisplay)>12,LEFT(RIGHT(miDisplay,13),1),\" \"))","v":" "},null,null,{"$f":"IF(OR(MID(miFechaHora,5,1)=\".\",MID(miFechaHora,6,1)=\".\"),\".\",IF(miPunto=12,\".\",\"\"))","v":""},null,null,{"$f":"IF(miFechaHora<>\"\",MID(SUBSTITUTE(miDisplay,\".\",\"\"),5,1),IF(LEN(miDisplay)>11,LEFT(RIGHT(miDisplay,12),1),\" \"))","v":" "},null,null,{"$f":"IF(miPunto=11,\".\",\"\")","v":""},null,null,{"$f":"IF(miFechaHora<>\"\",MID(SUBSTITUTE(miDisplay,\".\",\"\"),6,1),IF(LEN(miDisplay)>10,LEFT(RIGHT(miDisplay,11),1),\" \"))","v":" "},null,null,{"$f":"IF(MID(miFechaHora,8,1)=\".\",\".\",IF(miPunto=10,\".\",\"\"))","v":""},null,null,{"$f":"IF(miFechaHora<>\"\",MID(SUBSTITUTE(miDisplay,\".\",\"\"),7,1),IF(LEN(miDisplay)>9,LEFT(RIGHT(miDisplay,10),1),\" \"))","v":" "},null,null,{"$f":"IF(miPunto=9,\".\",\"\")","v":""},null,null,{"$f":"IF(miFechaHora<>\"\",MID(SUBSTITUTE(miDisplay,\".\",\"\"),8,1),IF(LEN(miDisplay)>8,LEFT(RIGHT(miDisplay,9),1),\" \"))","v":" "},null,null,{"$f":"IF(miPunto=8,\".\",\"\")","v":""},null,null,{"$f":"IF(miFechaHora<>\"\",\" \",IF(LEN(miDisplay)>7,LEFT(RIGHT(miDisplay,8),1),\" \"))","v":" "},null,null,{"$f":"IF(miPunto=7,\".\",\"\")","v":""},null,null,{"$f":"IF(miFechaHora<>\"\",MID(miDisplay,12,1),IF(miFechaHora<>\"\",\" \",IF(LEN(miDisplay)>6,LEFT(RIGHT(miDisplay,7),1),\" \")))","v":" "},null,null,{"$f":"IF(miPunto=6,\".\",\"\")","v":""},null,null,{"$f":"IF(miFechaHora<>\"\",MID(miDisplay,13,1),IF(LEN(miDisplay)>5,LEFT(RIGHT(miDisplay,6),1),\" \"))","v":" "}," ",null,{"$f":"IF(miFechaHora<>\"\",\":\",IF(miPunto=5,\".\",\"\"))","v":""},null,null,{"$f":"IF(miFechaHora<>\"\",MID(miDisplay,15,1),IF(LEN(miDisplay)>4,LEFT(RIGHT(miDisplay,5),1),\" \"))","v":" "},null,null,{"$f":"IF(miPunto=4,\".\",\"\")","v":""},null,null,{"$f":"IF(miFechaHora<>\"\",MID(miDisplay,16,1),IF(LEN(miDisplay)>3,LEFT(RIGHT(miDisplay,4),1),\" \"))","v":" "},null,null,{"$f":"IF(miFechaHora<>\"\",\":\",IF(miPunto=3,\".\",\"\"))","v":""},null,null,{"$f":"IF(miFechaHora<>\"\",MID(miDisplay,18,1),IF(LEN(miDisplay)>2,LEFT(RIGHT(miDisplay,3),1),\" \"))","v":" "},null,null,{"$f":"IF(miPunto=2,\".\",\"\")","v":""},null,null,{"$f":"IF(miFechaHora<>\"\",MID(miDisplay,19,1),IF(LEN(miDisplay)>1,LEFT(RIGHT(miDisplay,2),1),\" \"))","v":" "},null,null,{"$f":"IF(miPunto=1,\".\",\"\")","v":""},null,null,{"$f":"IF(miFechaHora<>\"\",\" \",IF(LEN(miDisplay)>0,RIGHT(miDisplay,1),\" \"))","v":"0"},null,null,{"$f":"IF(miPunto=0,\".\",\"\")","v":"."},null,null,"TeclaZ1"," "]
[null,null,null,null,null,null,null,null,null,null,null,null,null,null,null,null,null,null,null,null,null,null,null,null,null,null,null,null,null,null,null,null,null,null,null,null,null,null,null,null,null,null,null,null,null,null,null,null,null,null,null,null,null,null,null,null,null,null,null,null,null,null,null,null,null,null,null,null,null,null,null,null,null,null,null,null,null,null,null,null,null,null,null,null,null,null,null,null,null,null,null,null,null,null,null,null,null,null,null,null,"TeclaZ-"," "]
[null,null,null,null,"D",0,null,null,null,null,null,null,null,null,null,null,null,null,null,null,null,null,null,null,null,null,null,null,null,null,null,null,null,null,null,null,null,null,null,null,null,null,"yyyy.mm.dd",null,null,null,null,null,null,null,null,null,null,null,null,null,null,0,"0 - Calculadora táctil",null,null,null,null,null,null,null,null,null,null,null,null,null,null,null,null,null,null,null,null,null,null,null,null,null,null,null,null,null,null,null,null,null,null,null,null,null,null,null,null,null,"TeclaZ%"," ",null,"Formulas"]
[null,null,null,null,"C",0,null,null,null,null,null,null,null,null,null,null,null,null,null,null,null,null,null,null,null,null,null,null,null,null,null,null,null,null,null,null,null,null,null,null,null,null,null,null,null,null,null,null,null,null,null,null,null,null,null,null,null,null,null,null,null,null,null,null,null,null,null,null,null,null,null,null,null,null,null,null,null,null,null,null,null,null,null,null,null,null,null,null,null,null,null,null,null,null,null,null,null,null,null,null,"TeclaZ+"," ",null,{"$f":"IF(miFechaHora<>\"\",miRegDisplay,IF(miRegDisplay=\"\",0,IF(SUBSTITUTE(miRegDisplay,\"E\",\"\")=miRegDisplay&\"\",IF(ABS(miRegDisplay)<10^15,miRegDisplay,LEFT(miRegDisplay,13)/10^12&\"E\"&LEN(miRegDisplay)-1),CZ15&CZ16)))","v":0}]
[null,null,null,null,"M",0,null,null,null,null,null,null,null,null,null,null,null,null,null,null,null,null,null,null,null,null,null,null,null,null,null,null,null,null,null,null,null,null,null,null,null,null,null,null,null,null,null,null,null,null,null,null,null,null,null,null,null,null,null,null,null,null,null,null,null,null,null,null,null,null,null,null,null,null,null,null,null,null,null,null,null,null,null,null,null,null,null,null,null,null,null,null,null,null,null,null,null,null,null,null,"TeclaDT"," ",null,{"$f":"IFERROR(LEFT(LEFT(miRegDisplay,FIND(\"E\",miRegDisplay)-1),17-LEN(CZ16)),\"\")","v":""}]
[null,null,null,null,"R01",0,null,null,null,null,null,null,null,null,null,null,null,null,null,null,null,null,null,null,null,null,null,null,null,null,null,null,null,null,null,null,null,null,null,null,null,null,null,null,null,null,null,null,null,null,null,null,null,null,null,null,null,null,null,null,null,null,null,null,null,null,null,null,null,null,null,null,null,null,null,null,null,null,null,null,null,null,null,null,null,null,null,null,null,null,null,null,null,null,null,null,null,null,null,null,null," ",null,{"$f":"IFERROR(SUBSTITUTE(RIGHT(miRegDisplay,LEN(miRegDisplay)-FIND(\"E\",miRegDisplay)+1),\"+\",\"\"),\"\")","v":""}]
[null,null,null,null,"R02",0,null,null,null,null,null,null,null,null,null,null,null,null,null,null,null,null,null,null,null,null,null,null,null,null,null,null,null,null,null,null,null,null,null,null,null,null,null,null,null,null,null,null,null,null,null,null,null,null,null,null,null,null,null,null,null,null,null,null,null,null,null,null,null,null,null,null,null,null,null,null,null,null,null,null,null,null,null,null,null,null,null,null,null,null,null,null,null,null,null,null,null,null,null,null,null," ",null,{"$f":"IF($CZ$18=\",\",\".\",\",\")","v":"."}]
[null,null,null,null,"R03",0,null,null,null,null,null,null,null,null,null,null,null,null,null,null,null,null,null,null,null,null,null,null,null,null,null,null,null,null,null,null,null,null,null,null,null,null,null,null,null,null,null,null,null,null,null,null,null,null,null,null,null,null,null,null,null,null,null,null,null,null,null,null,null,null,null,null,null,null,null,null,null,null,null,null,null,null,null,null,null,null,null,null,null,null,null,null,null,null,null,null,null,null,null,null,null," ",null,{"$f":"SeparadorDecimal()","v":","}]
[null,null,null,null,"R04",0,null,null,null,null,null,null,null,null,null,null,null,null,null,null,null,null,null,null,null,null,null,null,null,null,null,null,null,null,null,null,null,null,null,null,null,null,null,null,null,null,null,null,null,null,null,null,null,null,null,null,null,null,null,null,null,null,null,null,null,null,null,null,null,null,null,null,null,null,null,null,null,null,null,null,null,null,null,null,null,null,null,null,null,null,null,null,null,null,null,null,null,null,null,null,null," ",null,{"$f":"IF(ISNUMBER(VALUE($CZ$14)),MID($CZ$14,1,IF(ISERR(FIND($CZ$18,$CZ$14,1)-1),LEN($CZ$14),FIND($CZ$18,$CZ$14,1)-1)),LEFT($CZ$14))","v":"0"}]
[null,null,null,null,"R05","0",null,null,null,null,null,null,null,null,null,null,null,null,null,null,null,null,null,null,null,null,null,null,null,null,null,null,null,null,null,null,null,null,null,null,null,null,null,null,null,null,null,null,null,null,null,null,null,null,null,null,null,null,null,null,null,null,null,null,null,null,null,null,null,null,null,null,null,null,null,null,null,null,null,null,null,null,null,null,null,null,null,null,null,null,null,null,null,null,null,null,null,null,null,null,null," ",null,{"$f":"IF(ISNUMBER(VALUE($CZ$19)),IF(ISERROR(LEN($CZ$21)),\"\",MAX(LEN(CZ16),LEN($CZ$21))),\"\")","v":0}]
[null,null,null,null,"R06",0,null,null,null,null,null,null,null,null,null,null,null,null,null,null,null,null,null,null,null,null,null,null,null,null,null,null,null,null,null,null,null,null,null,null,null,null,null,null,null,null,null,null,null,null,null,null,null,null,null,null,null,null,null,null,null,null,null,null,null,null,null,null,null,null,null,null,null,null,null,null,null,null,null,null,null,null,null,null,null,null,null,null,null,null,null,null,null,null,null,null,null,null,null,null,null," ",null,{"$f":"IFERROR(MID(SUBSTITUTE(SUBSTITUTE($CZ$14,$CZ$19,\"\",1),$CZ$18,\"\"),1,16-LEN($CZ$19)),\"\")","v":""}]
[null,null,null,null,"R07",0,null,null,null,null,null,null,null,null,null,null,null,null,null,null,null,null,null,null,null,null,null,null,null,null,null,null,null,null,null,null,null,null,null,null,null,null,null,null,null,null,null,null,null,null,null,null,null,null,null,null,null,null,null,null,null,null,null,null,null,null,null,null,null,null,null,null,null,null,null,null,null,null,null,null,null,null,null,null,null,null,null,null,null,null,null,null,null,null,null,null,null,null,null,null,null," ",null,{"$f":"IF(miFechaHora<>\"\",miRegDisplay,CONCATENATE(CZ19,CZ21))","v":"0"}]
[null,null,null,null,"R08",0,null,null,null,null,null,null,null,null,null,null,null,null,null,null,null,null,null,null,null,null,null,null,null,null,null,null,null,null,null,null,null,null,null,null,null,null,null,null,null,null,null,null,null,null,null,null,null,null,null,null,null,null,null,null,null,null,null,null,null,null,null,null,null,null,null,null,null,null,null,null,null,null,null,null,null,null,null,null,null,null,null,null,null,null,null,null,null,null,null,null,null,null,null,null,null," "]
[null,null,null,null,"R09",0,null,null,null,null,null,null,null,null,null,null,null,null,null,null,null,null,null,null,null,null,null,null,null,null,null,null,null,null,null,null,null,null,null,null,null,null,null,null,null,null,null,null,null,null,null,null,null,null,null,null,null,null,null,null,null,null,null,null,null,null,null,null,null,null,null,null,null,null,null,null,null,null,null,null,null,null,null,null,null,null,null,null,null,null,null,null,null,null,null,null,null,null,null,null,null," "]
[null,null,null,null,"R10",0,null,null,null,null,null,null,null,null,null,null,null,null,null,null,null,null,null,null,null,null,null,null,null,null,null,null,null,null,null,null,null,null,null,null,null,null,null,null,null,null,null,null,null,null,null,null,null,null,null,null,null,null,null,null,null,null,null,null,null,null,null,null,null,null,null,null,null,null,null,null,null,null,null,null,null,null,null,null,null,null,null,null,null,null,null,null,null,null,null,null,null,null,null,null,null," "]
[null,null,null,null,"R11",0,null,null,null,null,null,null,null,null,null,null,null,null,null,null,null,null,null,null,null,null,null,null,null,null,null,null,null,null,null,null,null,null,null,null,null,null,null,null,null,null,null,null,null,null,null,null,null,null,null,null,null,null,null,null,null,null,null,null,null,null,null,null,null,null,null,null,null,null,null,null,null,null,null,null,null,null,null,null,null,null,null,null,null,null,null,null,null,null,null,null,null,null,null,null,null," "]
[null,null,null,null,"R12",0,null,null,null,null,null,null,null,null,null,null,null,null,null,null,null,null,null,null,null,null,null,null,null,null,null,null,null,null,null,null,null,null,null,null,null,null,null,null,null,null,null,null,null,null,null,null,null,null,null,null,null,null,null,null,null,null,null,null,null,null,null,null,null,null,null,null,null,null,null,null,null,null,null,null,null,null,null,null,null,null,null,null,null,null,null,null,null,null,null,null,null,null,null,null,null," "]
[null,null,null,null,"R13",0,null,null,null,null,null,null,null,null,null,null,null,null,null,null,null,null,null,null,null,null,null,null,null,null,null,null,null,null,null,null,null,null,null,null,null,null,null,null,null,null,null,null,null,null,null,null,null,null,null,null,null,null,null,null,null,null,null,null,null,null,null,null,null,null,null,null,null,null,null,null,null,null,null,null,null,null,null,null,null,null,null,null,null,null,null,null,null,null,null,null,null,null,null,null,null," "]
[null,null,null,null,"R14",0,null,null,null,null,null,null,null,null,null,null,null,null,null,null,null,null,null,null,null,null,null,null,null,null,null,null,null,null,null,null,null,null,null,null,null,null,null,null,null,null,null,null,null,null,null,null,null,null,null,null,null,null,null,null,null,null,null,null,null,null,null,null,null,null,null,null,null,null,null,null,null,null,null,null,null,null,null,null,null,null,null,null,null,null,null,null,null,null,null,null,null,null,null,null,null," "]
[null,null,null,null,"R15",0,null,null,null,null,null,null,null,null,null,null,null,null,null,null,null,null,null,null,null,null,null,null,null,null,null,null,null,null,null,null,null,null,null,null,null,null,null,null,null,null,null,null,null,null,null,null,null,null,null,null,null,null,null,null,null,null,null,null,null,null,null,null,null,null,null,null,null,null,null,null,null,null,null,null,null,null,null,null,null,null,null,null,null,null,null,null,null,null,null,null,null,null,null,null,null," "]
[null,null,null,null,"R16",0,null,null,null,null,null,null,null,null,null,null,null,null,null,null,null,null,null,null,null,null,null,null,null,null,null,null,null,null,null,null,null,null,null,null,null,null,null,null,null,null,null,null,null,null,null,null,null,null,null,null,null,null,null,null,null,null,null,null,null,null,null,null,null,null,null,null,null,null,null,null,null,null,null,null,null,null,null,null,null,null,null,null,null,null,null,null,null,null,null,null,null,null,null,null,null," "]
[null,null,null,null,"R17",0,null,null,null,null,null,null,null,null,null,null,null,null,null,null,null,null,null,null,null,null,null,null,null,null,null,null,null,null,null,null,null,null,null,null,null,null,null,null,null,null,null,null,null,null,null,null,null,null,null,null,null,null,null,null,null,null,null,null,null,null,null,null,null,null,null,null,null,null,null,null,null,null,null,null,null,null,null,null,null,null,null,null,null,null,null,null,null,null,null,null,null,null,null,null,null," "]
[null,null,null,null,"R18",0,null,null,null,null,null,null,null,null,null,null,null,null,null,null,null,null,null,null,null,null,null,null,null,null,null,null,null,null,null,null,null,null,null,null,null,null,null,null,null,null,null,null,null,null,null,null,null,null,null,null,null,null,null,null,null,null,null,null,null,null,null,null,null,null,null,null,null,null,null,null,null,null,null,null,null,null,null,null,null,null,null,null,null,null,null,null,null,null,null,null,null,null,null,null,null," "]
[null,null,null,null,"R19",0,null,null,null,null,null,null,null,null,null,null,null,null,null,null,null,null,null,null,null,null,null,null,null,null,null,null,null,null,null,null,null,null,null,null,null,null,null,null,null,null,null,null,null,null,null,null,null,null,null,null,null,null,null,null,null,null,null,null,null,null,null,null,null,null,null,null,null,null,null,null,null,null,null,null,null,null,null,null,null,null,null,null,null,null,null,null,null,null,null,null,null,null,null,null,null," "]
[null,null,null,null,"R20",0,null,null,null,null,null,null,null,null,null,null,null,null,null,null,null,null,null,null,null,null,null,null,null,null,null,null,null,null,null,null,null,null,null,null,null,null,null,null,null,null,null,null,null,null,null,null,null,null,null,null,null,null,null,null,null,null,null,null,null,null,null,null,null,null,null,null,null,null,null,null,null,null,null,null,null,null,null,null,null,null,null,null,null,null,null,null,null,null,null,null,null,null,null,null,null," "]
[null,null,null,null,"R21",0,null,null,null,null,null,null,null,null,null,null,null,null,null,null,null,null,null,null,null,null,null,null,null,null,null,null,null,null,null,null,null,null,null,null,null,null,null,null,null,null,null,null,null,null,null,null,null,null,null,null,null,null,null,null,null,null,null,null,null,null,null,null,null,null,null,null,null,null,null,null,null,null,null,null,null,null,null,null,null,null,null,null,null,null,null,null,null,null,null,null,null,null,null,null,null," "]
[null,null,null,null,"R22",0,null,null,null,null,null,null,null,null,null,null,null,null,null,null,null,null,null,null,null,null,null,null,null,null,null,null,null,null,null,null,null,null,null,null,null,null,null,null,null,null,null,null,null,null,null,null,null,null,null,null,null,null,null,null,null,null,null,null,null,null,null,null,null,null,null,null,null,null,null,null,null,null,null,null,null,null,null,null,null,null,null,null,null,null,null,null,null,null,null,null,null,null,null,null,null," "]
[null,null,null,null,"R23",0,null,null,null,null,null,null,null,null,null,null,null,null,null,null,null,null,null,null,null,null,null,null,null,null,null,null,null,null,null,null,null,null,null,null,null,null,null,null,null,null,null,null,null,null,null,null,null,null,null,null,null,null,null,null,null,null,null,null,null,null,null,null,null,null,null,null,null,null,null,null,null,null,null,null,null,null,null,null,null,null,null,null,null,null,null,null,null,null,null,null,null,null,null,null,null," "]
[null,null,null,null,"R24",0,null,null,null,null,null,null,null,null,null,null,null,null,null,null,null,null,null,null,null,null,null,null,null,null,null,null,null,null,null,null,null,null,null,null,null,null,null,null,null,null,null,null,null,null,null,null,null,null,null,null,null,null,null,null,null,null,null,null,null,null,null,null,null,null,null,null,null,null,null,null,null,null,null,null,null,null,null,null,null,null,null,null,null,null,null,null,null,null,null,null,null,null,null,null,null," "]
[null,null,null,null,"R25",0,null,null,null,null,null,null,null,null,null,null,null,null,null,null,null,null,null,null,null,null,null,null,null,null,null,null,null,null,null,null,null,null,null,null,null,null,null,null,null,null,null,null,null,null,null,null,null,null,null,null,null,null,null,null,null,null,null,null,null,null,null,null,null,null,null,null,null,null,null,null,null,null,null,null,null,null,null,null,null,null,null,null,null,null,null,null,null,null,null,null,null,null,null,null,null," "]
[null,null,null,null,"R26",0,null,null,null,null,null,null,null,null,null,null,null,null,null,null,null,null,null,null,null,null,null,null,null,null,null,null,null,null,null,null,null,null,null,null,null,null,null,null,null,null,null,null,null,null,null,null,null,null,null,null,null,null,null,null,null,null,null,null,null,null,null,null,null,null,null,null,null,null,null,null,null,null,null,null,null,null,null,null,null,null,null,null,null,null,null,null,null,null,null,null,null,null,null,null,null," "]
[null,null,null,null,"R27",0,null,null,null,null,null,null,null,null,null,null,null,null,null,null,null,null,null,null,null,null,null,null,null,null,null,null,null,null,null,null,null,null,null,null,null,null,null,null,null,null,null,null,null,null,null,null,null,null,null,null,null,null,null,null,null,null,null,null,null,null,null,null,null,null,null,null,null,null,null,null,null,null,null,null,null,null,null,null,null,null,null,null,null,null,null,null,null,null,null,null,null,null,null,null,null," "]
[null,null,null,null,"R28",0,null,null,null,null,null,null,null,null,null,null,null,null,null,null,null,null,null,null,null,null,null,null,null,null,null,null,null,null,null,null,null,null,null,null,null,null,null,null,null,null,null,null,null,null,null,null,null,null,null,null,null,null,null,null,null,null,null,null,null,null,null,null,null,null,null,null,null,null,null,null,null,null,null,null,null,null,null,null,null,null,null,null,null,null,null,null,null,null,null,null,null,null,null,null,null," "]
[null,null,null,null,"R29",0,null,null,null,null,null,null,null,null,null,null,null,null,null,null,null,null,null,null,null,null,null,null,null,null,null,null,null,null,null,null,null,null,null,null,null,null,null,null,null,null,null,null,null,null,null,null,null,null,null,null,null,null,null,null,null,null,null,null,null,null,null,null,null,null,null,null,null,null,null,null,null,null,null,null,null,null,null,null,null,null,null,null,null,null,null,null,null,null,null,null,null,null,null,null,null," "]
[null,null,null,null,"R30",0,null,null,null,null,null,null,null,null,null,null,null,null,null,null,null,null,null,null,null,null,null,null,null,null,null,null,null,null,null,null,null,null,null,null,null,null,null,null,null,null,null,null,null,null,null,null,null,null,null,null,null,null,null,null,null,null,null,null,null,null,null,null,null,null,null,null,null,null,null,null,null,null,null,null,null,null,null,null,null,null,null,null,null,null,null,null,null,null,null,null,null,null,null,null,null," "]
[null,null,null,null,null,null,null,null,null,null,null,null,null,null,null,null,null,null,null,null,null,null,null,null,null,null,null,null,null,null,null,null,null,null,null,null,null,null,null,null,null,null,null,null,null,null,null,null,null,null,null,null,null,null,null,null,null,null,null,null,null,null,null,null,null,null,null,null,0,null,null,null,null,null,null,null,null,null,null,null,null,null,null,null,null,null,null,null,null,null,null,null,null,null,null,null,null,null,null,null,null," "]
[null,null,null,null,null,null,null,null,null,null,null,null,null,null,null,null,null,null,null,null,null,null,null,null,null,null,null,null,null,null,null,null,null,null,null,null,null,null,null,null,null,null,null,null,null,null,null,null,null,null,null,null,null,null,null,null,null,null,null,null,null,null,null,null,null,null,null,null,null,null,null,null,null,null,"Blog:",null,null,"#ExcelPedroWave",null,null,null,null,null,null,null,null,null,null,null,null,null,null,null,null,null,null,null,null,null,null,null," "]
[null,null,null,null,null,null,null,null,null,null,null,null,null,null,null,null,null,null,null,null,null,null,null,null,null,null,null,{"$f":"VLOOKUP(Idiomas!$A$5,Trans,miNumIdioma,FALSE)","v":"Tooltips:"},1,null,null,null,null,null,null,null,null,null,null,{"$f":"VLOOKUP(Idiomas!$A$4,Trans,miNumIdioma,FALSE)","v":"Teclado:"},1,null,null,null,null,null,null,null,null,null,null,{"$f":"VLOOKUP(Idiomas!$A$3,Trans,miNumIdioma,FALSE)","v":"Flotante:"},0,null,null,null,null,null,null,null,null,null,null,{"$f":"VLOOKUP(Idiomas!$A$2,Trans,miNumIdioma,FALSE)","v":"Idioma:"},"Español",null,null,null,null,null,null,null,null,null,"YouTube:",null,null,"Excel Pedro Wave",null,null,null,null,null,null,null,null,null,null,null,null,null,null,null,null,null,null,null,null,null,null,null," "]
[null,null,null,null,null,null,null,null,null,null,null,null,null,null,null,null,null,null,null,null,null,null,null,null,null,null,null,null,null,null,null,null,null,null,null,null,null,null,null,null,null,null,null,null,null,null,null,null,null,null,null,null,null,null,null,null,null,null,null,null,null,null,null,null,null,null,null,null,null,null,null,null,null,null,"Copyright:",null,null,"Creative Commons 3.0",null,null,null,null,null,null,null,null,null,null,null,null,null,null,null,null,null,null,null,null,null,null,null," "]
[null,null,null,null,null,null,null,null,null,null,null,null,null,null,null,null,null,null,null,null,null,null,null,null,null,null,null,null,null,null,null,null,null,null,null,null,null,null,null,null,null,null,null,null,null,null,null,null,null,null,null,null,null,null,null,null,null,null,null,null,null,null,null,null,null,null,null,null,null,null,null,null,null,null,null,null,null,null,null,null,null,null,null,null,null,null,null,null,null,null,null,null,null,null,null,null,null,null,null,null,null," "]
[null,null,null,null,null,null,null,null,null,null,null,null,null,null,null,null,null,null,null,null,null,null,null,null,null,null,null,null,null,null,null,null,null,null,null,null,null,null,null,null,null,null,null,null,null,null,null,null,null,null,null,null,null,null,null,null,null,null,null,null,null,null,null,null,null,null,null,null,null,null,null,null,null,null,null,null,null,null,null,null,null,null,null,null,null,null,null,null,null,null,null,null,null,null,null,null,null,null,null,null,null," "]
[null,null,null,null,null,null,null,null,null,null,null,null,null,null,null,null,null,null,null,null,null,null,null,null,null,null,null,null,null,null,null,null,null,null,null,null,null,null,null,null,null,null,null,null,null,null,null,null,null,null,null,null,null,null,null,null,null,null,null,null,null,null,null,null,null,null,null,null,null,null,null,null,null,null,null,null,null,null,null,null,null,null,null,null,null,null,null,null,null,null,null,null,null,null,null,null,null,null,null,null,null," "]
[null,null,null,null,null,null,null,null,null,null,null,null,null,null,null,null,null,null,null,null,null,null,null,null,null,null,null,null,null,null,null,null,null,null,null,null,null,null,null,null,null,null,null,null,null,null,null,null,null,null,null,null,null,null,null,null,null,null,null,null,null,null,null,null,null,null,null,null,null,null,null,null,null,null,null,null,null,null,null,null,null,null,null,null,null,null,null,null,null,null,null,null,null,null,null,null,null,null,null,null,null," "]
[null,null,null,null,null,null,null,null,null,null,null,null,null,null,null,null,null,null,null,null,null,null,null,null,null,null,null,null,null,null,null,null,null,null,null,null,null,null,null,null,null,null,null,null,null,null,null,null,null,null,null,null,null,null,null,null,null,null,null,null,null,null,null,null,null,null,null,null,null,null,null,null,null,null,null,null,null,null,null,null,null,null,null,null,null,null,null,null,null,null,null,null,null,null,null,null,null,null,null,null,null," "]
[null,null,null,null,null,null,null,null,null,null,null,null,null,null,null,null,null,null,null,null,null,null,null,null,null,null,null,null,null,null,null,null,null,null,null,null,null,null,null,null,null,null,null,null,null,null,null,null,null,null,null,null,null,null,null,null,null,null,null,null,null,null,null,null,null,null,null,null,null,null,null,null,null,null,null,null,null,null,null,null,null,null,null,null,null,null,null,null,null,null,null,null,null,null,null,null,null,null,null,null,null," "]
[null,null,null,null,null,null,null,null,null,null,null,null,null,null,null,null,null,null,null,null,null,null,null,null,null,null,null,null,null,null,null,null,null,null,null,null,null,null,null,null,null,null,null,null,null,null,null,null,null,null,null,null,null,null,null,null,null,null,null,null,null,null,null,null,null,null,null,null,null,null,null,null,null,null,null,null,null,null,null,null,null,null,null,null,null,null,null,null,null,null,null,null,null,null,null,null,null,null,null,null,null," "]
[null,null,null,null,null,null,null,null,null,null,null,null,null,null,null,null,null,null,null,null,null,null,null,null,null,null,null,null,null,null,null,null,null,null,null,null,null,null,null,null,null,null,null,null,null,null,null,null,null,null,null,null,null,null,null,null,null,null,null,null,null,null,null,null,null,null,null,null,null,null,null,null,null,null,null,null,null,null,null,null,null,null,null,null,null,null,null,null,null,null,null,null,null,null,null,null,null,null,null,null,null," "]
[null,null,null,null,null,null,null,null,null,null,null,null,null,null,null,null,null,null,null,null,null,null,null,null,null,null,null,null,null,null,null,null,null,null,null,null,null,null,null,null,null,null,null,null,null,null,null,null,null,null,null,null,null,null,null,null,null,null,null,null,null,null,null,null,null,null,null,null,null,null,null,null,null,null,null,null,null,null,null,null,null,null,null,null,null,null,null,null,null,null,null,null,null,null,null,null,null,null,null,null,null," "]
[null,null,null,null,null,null,null,null,null,null,null,null,null,null,null,null,null,null,null,null,null,null,null,null,null,null,null,null,null,null,null,null,null,null,null,null,null,null,null,null,null,null,null,null,null,null,null,null,null,null,null,null,null,null,null,null,null,null,null,null,null,null,null,null,null,null,null,null,null,null,null,null,null,null,null,null,null,null,null,null,null,null,null,null,null,null,null,null,null,null,null,null,null,null,null,null,null,null,null,null,null," "]
[null,null,null,null,null,null,null,null,null,null,null,null,null,null,null,null,null,null,null,null,null,null,null,null,null,null,null,null,null,null,null,null,null,null,null,null,null,null,null,null,null,null,null,null,null,null,null,null,null,null,null,null,null,null,null,null,null,null,null,null,null,null,null,null,null,null,null,null,null,null,null,null,null,null,null,null,null,null,null,null,null,null,null,null,null,null,null,null,null,null,null,null,null,null,null,null,null,null,null,null,null," "]
[null,null,null,null,null,null,null,null,null,null,null,null,null,null,null,null,null,null,null,null,null,null,null,null,null,null,null,null,null,null,null,null,null,null,null,null,null,null,null,null,null,null,null,null,null,null,null,null,null,null,null,null,null,null,null,null,null,null,null,null,null,null,null,null,null,null,null,null,null,null,null,null,null,null,null,null,null,null,null,null,null,null,null,null,null,null,null,null,null,null,null,null,null,null,null,null,null,null,null,null,null," "]
[null,null,null,null,null,null,null,null,null,null,null,null,null,null,null,null,null,null,null,null,null,null,null,null,null,null,null,null,null,null,null,null,null,null,null,null,null,null,null,null,null,null,null,null,null,null,null,null,null,null,null,null,null,null,null,null,null,null,null,null,null,null,null,null,null,null,null,null,null,null,null,null,null,null,null,null,null,null,null,null,null,null,null,null,null,null,null,null,null,null,null,null,null,null,null,null,null,null,null,null,null," "]
[null,null,null,null,null,null,null,null,null,null,null,null,null,null,null,null,null,null,null,null,null,null,null,null,null,null,null,null,null,null,null,null,null,null,null,null,null,null,null,null,null,null,null,null,null,null,null,null,null,null,null,null,null,null,null,null,null,null,null,null,null,null,null,null,null,null,null,null,null,null,null,null,null,null,null,null,null,null,null,null,null,null,null,null,null,null,null,null,null,null,null,null,null,null,null,null,null,null,null,null,null," "]
[null,null,null,null,null,null,null,null,null,null,null,null,null,null,null,null,null,null,null,null,null,null,null,null,null,null,null,null,null,null,null,null,null,null,null,null,null,null,null,null,null,null,null,null,null,null,null,null,null,null,null,null,null,null,null,null,null,null,null,null,null,null,null,null,null,null,null,null,null,null,null,null,null,null,null,null,null,null,null,null,null,null,null,null,null,null,null,null,null,null,null,null,null,null,null,null,null,null,null,null,null," "]
[null,null,null,null,null,null,null,null,null,null,null,null,null,null,null,null,null,null,null,null,null,null,null,null,null,null,null,null,null,null,null,null,null,null,null,null,null,null,null,null,null,null,null,null,null,null,null,null,null,null,null,null,null,null,null,null,null,null,null,null,null,null,null,null,null,null,null,null,null,null,null,null,null,null,null,null,null,null,null,null,null,null,null,null,null,null,null,null,null,null,null,null,null,null,null,null,null,null,null,null,null," "]
[null,null,null,null,null,null,null,null,null,null,null,null,null,null,null,null,null,null,null,null,null,null,null,null,null,null,null,null,null,null,null,null,null,null,null,null,null,null,null,null,null,null,null,null,null,null,null,null,null,null,null,null,null,null,null,null,null,null,null,null,null,null,null,null,null,null,null,null,null,null,null,null,null,null,null,null,null,null,null,null,null,null,null,null,null,null,null,null,null,null,null,null,null,null,null,null,null,null,null,null,null," "]
[null,null,null,null,null,null,null,null,null,null,null,null,null,null,null,null,null,null,null,null,null,null,null,null,null,null,null,null,null,null,null,null,null,null,null,null,null,null,null,null,null,null,null,null,null,null,null,null,null,null,null,null,null,null,null,null,null,null,null,null,null,null,null,null,null,null,null,null,null,null,null,null,null,null,null,null,null,null,null,null,null,null,null,null,null,null,null,null,null,null,null,null,null,null,null,null,null,null,null,null,null," "]
[null,null,null,null,null,null,null,null,null,null,null,null,null,null,null,null,null,null,null,null,null,null,null,null,null,null,null,null,null,null,null,null,null,null,null,null,null,null,null,null,null,null,null,null,null,null,null,null,null,null,null,null,null,null,null,null,null,null,null,null,null,null,null,null,null,null,null,null,null,null,null,null,null,null,null,null,null,null,null,null,null,null,null,null,null,null,null,null,null,null,null,null,null,null,null,null,null,null,null,null,null," "]
[null,null,null,null,null,null,null,null,null,null,null,null,null,null,null,null,null,null,null,null,null,null,null,null,null,null,null,null,null,null,null,null,null,null,null,null,null,null,null,null,null,null,null,null,null,null,null,null,null,null,null,null,null,null,null,null,null,null,null,null,null,null,null,null,null,null,null,null,null,null,null,null,null,null,null,null,null,null,null,null,null,null,null,null,null,null,null,null,null,null,null,null,null,null,null,null,null,null,null,null,null," "]
[null,null,null,null,null,null,null,null,null,null,null,null,null,null,null,null,null,null,null,null,null,null,null,null,null,null,null,null,null,null,null,null,null,null,null,null,null,null,null,null,null,null,null,null,null,null,null,null,null,null,null,null,null,null,null,null,null,null,null,null,null,null,null,null,null,null,null,null,null,null,null,null,null,null,null,null,null,null,null,null,null,null,null,null,null,null,null,null,null,null,null,null,null,null,null,null,null,null,null,null,null," "]
[null,null,null,null,null,null,null,null,null,null,null,null,null,null,null,null,null,null,null,null,null,null,null,null,null,null,null,null,null,null,null,null,null,null,null,null,null,null,null,null,null,null,null,null,null,null,null,null,null,null,null,null,null,null,null,null,null,null,null,null,null,null,null,null,null,null,null,null,null,null,null,null,null,null,null,null,null,null,null,null,null,null,null,null,null,null,null,null,null,null,null,null,null,null,null,null,null,null,null,null,null," "]
[null,null,null,null,null,null,null,null,null,null,null,null,null,null,null,null,null,null,null,null,null,null,null,null,null,null,null,null,null,null,null,null,null,null,null,null,null,null,null,null,null,null,null,null,null,null,null,null,null,null,null,null,null,null,null,null,null,null,null,null,null,null,null,null,null,null,null,null,null,null,null,null,null,null,null,null,null,null,null,null,null,null,null,null,null,null,null,null,null,null,null,null,null,null,null,null,null,null,null,null,null," "]
[null,null,null,null,null,null,null,null,null,null,null,null,null,null,null,null,null,null,null,null,null,null,null,null,null,null,null,null,null,null,null,null,null,null,null,null,null,null,null,null,null,null,null,null,null,null,null,null,null,null,null,null,null,null,null,null,null,null,null,null,null,null,null,null,null,null,null,null,null,null,null,null,null,null,null,null,null,null,null,null,null,null,null,null,null,null,null,null,null,null,null,null,null,null,null,null,null,null,null,null,null," "]
[null,null,null,null,null,null,null,null,null,null,null,null,null,null,null,null,null,null,null,null,null,null,null,null,null,null,null,null,null,null,null,null,null,null,null,null,null,null,null,null,null,null,null,null,null,null,null,null,null,null,null,null,null,null,null,null,null,null,null,null,null,null,null,null,null,null,null,null,null,null,null,null,null,null,null,null,null,null,null,null,null,null,null,null,null,null,null,null,null,null,null,null,null,null,null,null,null,null,null,null,null," "]
[null,null,null,null,null,null,null,null,null,null,null,null,null,null,null,null,null,null,null,null,null,null,null,null,null,null,null,null,null,null,null,null,null,null,null,null,null,null,null,null,null,null,null,null,null,null,null,null,null,null,null,null,null,null,null,null,null,null,null,null,null,null,null,null,null,null,null,null,null,null,null,null,null,null,null,null,null,null,null,null,null,null,null,null,null,null,null,null,null,null,null,null,null,null,null,null,null,null,null,null,null," "]
[null,null,null,null,null,null,null,null,null,null,null,null,null,null,null,null,null,null,null,null,null,null,null,null,null,null,null,null,null,null,null,null,null,null,null,null,null,null,null,null,null,null,null,null,null,null,null,null,null,null,null,null,null,null,null,null,null,null,null,null,null,null,null,null,null,null,null,null,null,null,null,null,null,null,null,null,null,null,null,null,null,null,null,null,null,null,null,null,null,null,null,null,null,null,null,null,null,null,null,null,null," "]
[null,null,null,null,null,null,null,null,null,null,null,null,null,null,null,null,null,null,null,null,null,null,null,null,null,null,null,null,null,null,null,null,null,null,null,null,null,null,null,null,null,null,null,null,null,null,null,null,null,null,null,null,null,null,null,null,null,null,null,null,null,null,null,null,null,null,null,null,null,null,null,null,null,null,null,null,null,null,null,null,null,null,null,null,null,null,null,null,null,null,null,null,null,null,null,null,null,null,null,null,null," "]
[null,null,null,null,null,null,null,null,null,null,null,null,null,null,null,null,null,null,null,null,null,null,null,null,null,null,null,null,null,null,null,null,null,null,null,null,null,null,null,null,null,null,null,null,null,null,null,null,null,null,null,null,null,null,null,null,null,null,null,null,null,null,null,null,null,null,null,null,null,null,null,null,null,null,null,null,null,null,null,null,null,null,null,null,null,null,null,null,null,null,null,null,null,null,null,null,null,null,null,null,null," "]
[null,null,null,null,null,null,null,null,null,null,null,null,null,null,null,null,null,null,null,null,null,null,null,null,null,null,null,null,null,null,null,null,null,null,null,null,null,null,null,null,null,null,null,null,null,null,null,null,null,null,null,null,null,null,null,null,null,null,null,null,null,null,null,null,null,null,null,null,null,null,null,null,null,null,null,null,null,null,null,null,null,null,null,null,null,null,null,null,null,null,null,null,null,null,null,null,null,null,null,null,null," "]
[null,null,null,null,null,null,null,null,null,null,null,null,null,null,null,null,null,null,null,null,null,null,null,null,null,null,null,null,null,null,null,null,null,null,null,null,null,null,null,null,null,null,null,null,null,null,null,null,null,null,null,null,null,null,null,null,null,null,null,null,null,null,null,null,null,null,null,null,null,null,null,null,null,null,null,null,null,null,null,null,null,null,null,null,null,null,null,null,null,null,null,null,null,null,null,null,null,null,null,null,null," "]
[null,null,null,null,null,null,null,null,null,null,null,null,null,null,null,null,null,null,null,null,null,null,null,null,null,null,null,null,null,null,null,null,null,null,null,null,null,null,null,null,null,null,null,null,null,null,null,null,null,null,null,null,null,null,null,null,null,null,null,null,null,null,null,null,null,null,null,null,null,null,null,null,null,null,null,null,null,null,null,null,null,null,null,null,null,null,null,null,null,null,null,null,null,null,null,null,null,null,null,null,null," "]
[null,null,null,null,null,null,null,null,null,null,null,null,null,null,null,null,null,null,null,null,null,null,null,null,null,null,null,null,null,null,null,null,null,null,null,null,null,null,null,null,null,null,null,null,null,null,null,null,null,null,null,null,null,null,null,null,null,null,null,null,null,null,null,null,null,null,null,null,null,null,null,null,null,null,null,null,null,null,null,null,null,null,null,null,null,null,null,null,null,null,null,null,null,null,null,null,null,null,null,null,null," "]
[null,null,null,null,null,null,null,null,null,null,null,null,null,null,null,null,null,null,null,null,null,null,null,null,null,null,null,null,null,null,null,null,null,null,null,null,null,null,null,null,null,null,null,null,null,null,null,null,null,null,null,null,null,null,null,null,null,null,null,null,null,null,null,null,null,null,null,null,null,null,null,null,null,null,null,null,null,null,null,null,null,null,null,null,null,null,null,null,null,null,null,null,null,null,null,null,null,null,null,null,null," "]
[null,null,null,null,null,null,null,null,null,null,null,null,null,null,null,null,null,null,null,null,null,null,null,null,null,null,null,null,null,null,null,null,null,null,null,null,null,null,null,null,null,null,null,null,null,null,null,null,null,null,null,null,null,null,null,null,null,null,null,null,null,null,null,null,null,null,null,null,null,null,null,null,null,null,null,null,null,null,null,null,null,null,null,null,null,null,null,null,null,null,null,null,null,null,null,null,null,null,null,null,null," "]
[null,null,null,null,null,null,null,null,null,null,null,null,null,null,null,null,null,null,null,null,null,null,null,null,null,null,null,null,null,null,null,null,null,null,null,null,null,null,null,null,null,null,null,null,null,null,null,null,null,null,null,null,null,null,null,null,null,null,null,null,null,null,null,null,null,null,null,null,null,null,null,null,null,null,null,null,null,null,null,null,null,null,null,null,null,null,null,null,null,null,null,null,null,null,null,null,null,null,null,null,null," "]
[null,null,null,null,null,null,null,null,null,null,null,null,null,null,null,null,null,null,null,null,null,null,null,null,null,null,null,null,null,null,null,null,null,null,null,null,null,null,null,null,null,null,null,null,null,null,null,null,null,null,null,null,null,null,null,null,null,null,null,null,null,null,null,null,null,null,null,null,null,null,null,null,null,null,null,null,null,null,null,null,null,null,null,null,null,null,null,null,null,null,null,null,null,null,null,null,null,null,null,null,null," "]
[null,null,null,null,null,null,null,null,null,null,null,null,null,null,null,null,null,null,null,null,null,null,null,null,null,null,null,null,null,null,null,null,null,null,null,null,null,null,null,null,null,null,null,null,null,null,null,null,null,null,null,null,null,null,null,null,null,null,null,null,null,null,null,null,null,null,null,null,null,null,null,null,null,null,null,null,null,null,null,null,null,null,null,null,null,null,null,null,null,null,null,null,null,null,null,null,null,null,null,null,null," "]
[null,null,null,null,null,null,null,null,null,null,null,null,null,null,null,null,null,null,null,null,null,null,null,null,null,null,null,null,null,null,null,null,null,null,null,null,null,null,null,null,null,null,null,null,null,null,null,null,null,null,null,null,null,null,null,null,null,null,null,null,null,null,null,null,null,null,null,null,null,null,null,null,null,null,null,null,null,null,null,null,null,null,null,null,null,null,null,null,null,null,null,null,null,null,null,null,null,null,null,null,null," "]
[null,null,null,null,null,null,null,null,null,null,null,null,null,null,null,null,null,null,null,null,null,null,null,null,null,null,null,null,null,null,null,null,null,null,null,null,null,null,null,null,null,null,null,null,null,null,null,null,null,null,null,null,null,null,null,null,null,null,null,null,null,null,null,null,null,null,null,null,null,null,null,null,null,null,null,null,null,null,null,null,null,null,null,null,null,null,null,null,null,null,null,null,null,null,null,null,null,null,null,null,null," "]
[null,null,null,null,null,null,null,null,null,null,null,null,null,null,null,null,null,null,null,null,null,null,null,null,null,null,null,null,null,null,null,null,null,null,null,null,null,null,null,null,null,null,null,null,null,null,null,null,null,null,null,null,null,null,null,null,null,null,null,null,null,null,null,null,null,null,null,null,null,null,null,null,null,null,null,null,null,null,null,null,null,null,null,null,null,null,null,null,null,null,null,null,null,null,null,null,null,null,null,null,null," "]
[null,null,null,null,null,null,null,null,null,null,null,null,null,null,null,null,null,null,null,null,null,null,null,null,null,null,null,null,null,null,null,null,null,null,null,null,null,null,null,null,null,null,null,null,null,null,null,null,null,null,null,null,null,null,null,null,null,null,null,null,null,null,null,null,null,null,null,null,null,null,null,null,null,null,null,null,null,null,null,null,null,null,null,null,null,null,null,null,null,null,null,null,null,null,null,null,null,null,null,null,null," "]
[null,null,null,null,null,null,null,null,null,null,null,null,null,null,null,null,null,null,null,null,null,null,null,null,null,null,null,null,null,null,null,null,null,null,null,null,null,null,null,null,null,null,null,null,null,null,null,null,null,null,null,null,null,null,null,null,null,null,null,null,null,null,null,null,null,null,null,null,null,null,null,null,null,null,null,null,null,null,null,null,null,null,null,null,null,null,null,null,null,null,null,null,null,null,null,null,null,null,null,null,null," "]
[null,null,null,null,null,null,null,null,null,null,null,null,null,null,null,null,null,null,null,null,null,null,null,null,null,null,null,null,null,null,null,null,null,null,null,null,null,null,null,null,null,null,null,null,null,null,null,null,null,null,null,null,null,null,null,null,null,null,null,null,null,null,null,null,null,null,null,null,null,null,null,null,null,null,null,null,null,null,null,null,null,null,null,null,null,null,null,null,null,null,null,null,null,null,null,null,null,null,null,null,null," "]
[null,null,null,null,null,null,null,null,null,null,null,null,null,null,null,null,null,null,null,null,null,null,null,null,null,null,null,null,null,null,null,null,null,null,null,null,null,null,null,null,null,null,null,null,null,null,null,null,null,null,null,null,null,null,null,null,null,null,null,null,null,null,null,null,null,null,null,null,null,null,null,null,null,null,null,null,null,null,null,null,null,null,null,null,null,null,null,null,null,null,null,null,null,null,null,null,null,null,null,null,null," "]
[null,null,null,null,null,null,null,null,null,null,null,null,null,null,null,null,null,null,null,null,null,null,null,null,null,null,null,null,null,null,null,null,null,null,null,null,null,null,null,null,null,null,null,null,null,null,null,null,null,null,null,null,null,null,null,null,null,null,null,null,null,null,null,null,null,null,null,null,null,null,null,null,null,null,null,null,null,null,null,null,null,null,null,null,null,null,null,null,null,null,null,null,null,null,null,null,null,null,null,null,null," "]
[null,null,null,null,null,null,null,null,null,null,null,null,null,null,null,null,null,null,null,null,null,null,null,null,null,null,null,null,null,null,null,null,null,null,null,null,null,null,null,null,null,null,null,null,null,null,null,null,null,null,null,null,null,null,null,null,null,null,null,null,null,null,null,null,null,null,null,null,null,null,null,null,null,null,null,null,null,null,null,null,null,null,null,null,null,null,null,null,null,null,null,null,null,null,null,null,null,null,null,null,null," "]
[null,null,null,null,null,null,null,null,null,null,null,null,null,null,null,null,null,null,null,null,null,null,null,null,null,null,null,null,null,null,null,null,null,null,null,null,null,null,null,null,null,null,null,null,null,null,null,null,null,null,null,null,null,null,null,null,null,null,null,null,null,null,null,null,null,null,null,null,null,null,null,null,null,null,null,null,null,null,null,null,null,null,null,null,null,null,null,null,null,null,null,null,null,null,null,null,null,null,null,null,null," "]
[null,null,null,null,null,null,null,null,null,null,null,null,null,null,null,null,null,null,null,null,null,null,null,null,null,null,null,null,null,null,null,null,null,null,null,null,null,null,null,null,null,null,null,null,null,null,null,null,null,null,null,null,null,null,null,null,null,null,null,null,null,null,null,null,null,null,null,null,null,null,null,null,null,null,null,null,null,null,null,null,null,null,null,null,null,null,null,null,null,null,null,null,null,null,null,null,null,null,null,null,null," "]
[null,null,null,null,null,null,null,null,null,null,null,null,null,null,null,null,null,null,null,null,null,null,null,null,null,null,null,null,null,null,null,null,null,null,null,null,null,null,null,null,null,null,null,null,null,null,null,null,null,null,null,null,null,null,null,null,null,null,null,null,null,null,null,null,null,null,null,null,null,null,null,null,null,null,null,null,null,null,null,null,null,null,null,null,null,null,null,null,null,null,null,null,null,null,null,null,null,null,null,null,null," "]
[null,null,null,null,null,null,null,null,null,null,null,null,null,null,null,null,null,null,null,null,null,null,null,null,null,null,null,null,null,null,null,null,null,null,null,null,null,null,null,null,null,null,null,null,null,null,null,null,null,null,null,null,null,null,null,null,null,null,null,null,null,null,null,null,null,null,null,null,null,null,null,null,null,null,null,null,null,null,null,null,null,null,null,null,null,null,null,null,null,null,null,null,null,null,null,null,null,null,null,null,null," "]
[null,null,null,null,null,null,null,null,null,null,null,null,null,null,null,null,null,null,null,null,null,null,null,null,null,null,null,null,null,null,null,null,null,null,null,null,null,null,null,null,null,null,null,null,null,null,null,null,null,null,null,null,null,null,null,null,null,null,null,null,null,null,null,null,null,null,null,null,null,null,null,null,null,null,null,null,null,null,null,null,null,null,null,null,null,null,null,null,null,null,null,null,null,null,null,null,null,null,null,null,null," "]
[null,null,null,null,null,null,null,null,null,null,null,null,null,null,null,null,null,null,null,null,null,null,null,null,null,null,null,null,null,null,null,null,null,null,null,null,null,null,null,null,null,null,null,null,null,null,null,null,null,null,null,null,null,null,null,null,null,null,null,null,null,null,null,null,null,null,null,null,null,null,null,null,null,null,null,null,null,null,null,null,null,null,null,null,null,null,null,null,null,null,null,null,null,null,null,null,null,null,null,null,null," "]
[null,null,null,null,null,null,null,null,null,null,null,null,null,null,null,null,null,null,null,null,null,null,null,null,null,null,null,null,null,null,null,null,null,null,null,null,null,null,null,null,null,null,null,null,null,null,null,null,null,null,null,null,null,null,null,null,null,null,null,null,null,null,null,null,null,null,null,null,null,null,null,null,null,null,null,null,null,null,null,null,null,null,null,null,null,null,null,null,null,null,null,null,null,null,null,null,null,null,null,null,null," "]

{"sheet":"ANSI","index":1,"n_rows":101,"n_cols":12,"rows_kept":101,"cut":false,"hidden":false,"merged":[]}
[0,{"$f":"CHAR(A1+32)","v":" "}," ",null,{"$f":"CODE(B1)","v":32},0,0,0,0,0,0,0]
[1,"!"," ",null,33,0,0,0,0,0,0,0]
[2,"\""," ",null,34,0,1,0,0,0,1,0]
[3,"#"," ",null,35,0,0,0,0,0,0,0]
[4,"$"," ",null,36,0,0,0,0,0,0,0]
[5,"%"," ",null,37,0,0,0,0,0,0,0]
[6,"&"," ",null,38,0,0,0,0,0,0,0]
[7,"'"," ",null,39,0,0,0,0,0,0,0]
[8,"("," ",null,40,0,0,0,0,0,0,0]
[9,")"," ",null,41,0,0,0,0,0,0,0]
[10,"*"," ",null,42,0,0,0,0,0,0,0]
[11,"+"," ",null,43,0,0,0,0,0,0,0]
[12,","," ",null,44,0,0,0,0,0,0,0]
[13,"-","-",null,45,0,0,0,0,0,0,1]
[14,"."," ",null,46,0,0,0,0,0,0,0]
[15,"/"," ",null,47,0,0,0,0,0,0,0]
[16,"0",0,null,48,1,1,1,1,1,1,0]
[17,"1",1,null,49,0,1,1,0,0,0,0]
[18,"2",2,null,50,1,1,0,1,1,0,1]
[19,"3",3,null,51,1,1,1,1,0,0,1]
[20,"4",4,null,52,0,1,1,0,0,1,1]
[21,"5",5,null,53,1,0,1,1,0,1,1]
[22,"6",6,null,54,1,0,1,1,1,1,1]
[23,"7",7,null,{"$f":"CODE(B24)","v":55},1,1,1,0,0,0,0]
[24,"8",8,null,56,1,1,1,1,1,1,1]
[25,"9",9,null,57,1,1,1,1,0,1,1]
[26,":",":",null,58,0,0,0,0,0,0,0]
[27,";",null,null,59,0,0,0,0,0,0,0]
[28,"<",null,null,60,0,0,0,0,0,0,0]
[29,"=","=",null,61,0,0,0,1,0,0,1]
[30,">",null,null,62,0,0,0,0,0,0,0]
[31,"?",null,null,63,0,0,0,0,0,0,0]
[32,"@",null,null,64,0,0,0,0,0,0,0]
[33,"A","A",null,65,1,1,1,0,1,1,1]
[34,"B","b",null,66,0,0,1,1,1,1,1]
[35,"C","C",null,67,1,0,0,1,1,1,0]
[36,"D","d",null,68,0,1,1,1,1,0,1]
[37,"E","E",null,69,1,0,0,1,1,1,1]
[38,"F","F",null,70,1,0,0,0,1,1,1]
[39,"G","G",null,71,1,0,1,1,1,1,0]
[40,"H","H",null,72,0,1,1,0,1,1,1]
[41,"I","I",null,73,0,0,0,0,1,1,0]
[42,"J","J",null,74,0,1,1,1,1,0,0]
[43,"K","K",null,75,1,0,1,0,1,1,1]
[44,"L","L",null,76,0,0,0,1,1,1,0]
[45,"M","M",null,77,1,0,1,0,1,0,0]
[46,"N","N",null,78,1,1,1,0,1,1,0]
[47,"O","O",null,79,1,1,1,1,1,1,0]
[48,"P","P",null,80,1,1,0,0,1,1,1]
[49,"Q","q",null,81,1,1,1,0,0,1,1]
[50,"R","R",null,82,1,0,0,0,1,1,0]
[51,"S","S",null,83,1,0,1,1,0,1,1]
[52,"T","t",null,84,0,0,0,1,1,1,1]
[53,"U","U",null,85,0,1,1,1,1,1,0]
[54,"V","V",null,86,0,1,0,1,0,1,0]
[55,"W","W",null,87,0,1,0,1,0,1,1]
[56,"X","X",null,88,1,0,0,1,0,0,1]
[57,"Y","y",null,89,0,1,1,1,0,1,1]
[58,"Z","Z",null,90,1,1,0,1,1,0,1]
[59,"[","[",null,91,1,0,0,1,1,1,0]
[60,"\\",null,null,92,0,0,0,0,0,0,0]
[61,"]","]",null,93,1,1,1,1,0,0,0]
[62,"^",null,null,94,0,0,0,0,0,0,0]
[63,"_","_",null,95,0,0,0,1,0,0,0]
[64,{"$f":"CHAR(A65+32)","v":"`"},null,null,{"$f":"CODE(B65)","v":96},0,0,0,0,0,0,0]
[65,"a","a",null,97,1,1,1,1,1,0,1]
[66,"b","b",null,98,0,0,1,1,1,1,1]
[67,"c","c",null,99,0,0,0,1,1,0,1]
[68,"d","d",null,100,0,1,1,1,1,0,1]
[69,"e","e",null,101,1,1,0,1,1,1,1]
[70,"f","F",null,102,1,0,0,0,1,1,1]
[71,"g","g",null,103,1,1,1,1,0,1,1]
[72,"h","h",null,104,0,0,1,0,1,1,1]
[73,"i","I",null,105,0,0,0,0,1,1,0]
[74,"j","J",null,106,0,1,1,1,0,0,0]
[75,"k","k",null,107,0,0,0,0,1,1,1]
[76,"l","l",null,108,0,0,0,0,1,1,0]
[77,"m","M",null,109,1,0,1,0,1,0,0]
[78,"n","n",null,110,0,0,1,0,1,0,1]
[79,"o","o",null,111,0,0,1,1,1,0,1]
[80,"p","P",null,112,1,1,0,0,1,1,1]
[81,"q","q",null,113,1,1,1,0,0,1,1]
[82,"r","r",null,114,0,0,0,0,1,0,1]
[83,"s","S",null,115,1,0,1,1,0,1,1]
[84,"t","t",null,116,0,0,0,1,1,1,1]
[85,"u","u",null,117,0,0,1,1,1,0,0]
[86,"v","V",null,118,0,1,0,1,0,1,0]
[87,"w","W",null,119,0,1,0,1,0,1,1]
[88,"x","X",null,120,1,0,0,1,0,0,1]
[89,"y","y",null,121,0,1,1,1,0,1,1]
[90,"z","Z",null,122,1,1,0,1,1,0,1]
[91,"{",null,null,123,0,0,0,0,0,0,0]
[92,"|",null,null,124,0,0,0,0,0,0,0]
[93,"}",null,null,125,0,0,0,0,0,0,0]
[94,"~",null,null,126,0,0,0,0,0,0,0]
[]
[null,"A",null,null,null,"A","B","C","D","E","F","G"]
["F",null,"B"]
[null,"G"]
["E",null,"C"]
[null,"D"]

{"sheet":"Idiomas","index":2,"n_rows":107,"n_cols":6,"rows_kept":107,"cut":false,"hidden":false,"merged":[]}
["English","Español","Français","Italiano","Deutsch","Português"]
["Language:","Idioma:","Langue:","Lingua:","Sprache:","Idioma:"]
["Floating:","Flotante:","Flottant:","Floating:","Floating:","Flutuante:"]
["Keyboard:","Teclado:","Clavier:","Tastiera:","Tastatur:","Teclado:"]
["Tooltips:","Tooltips:","Les info-bulles:","Tooltips:","Tooltips:","Tooltips:"]
["Touch calculator","Calculadora táctil","Calculateur touch","Touch Calculator","Touch-Rechner","Toque Calculadora"]
["My first calculator","Mi primera calculadora","Ma première calculatrice","La mia prima calcolatrice","Mein erster Rechner","Minha primeira calculadora"]
["Microsoft calculator","Calculadora Microsoft","Calculateur de Microsoft","Microsoft Calculator","Microsoft Calculator","Microsoft Calculator"]
["Phone calculator","Calculadora Celular","Calculateur de téléphone","Mobile Calculator","Mobile Rechner","Mobile Calculadora"]
["Mini-Calculator","Mini-Calculadora","Mini-calculatrice","Mini-Calcolatrice","Mini-Rechner","Mini Calculadora-"]
["Percent (%)","Porcentaje (%)","Pour cent (%)","Percentuale (%)","Prozent (%)","Por cento (%)"]
["Multiplication (*)","Multiplicación (*)","Multiplication (*)","Moltiplicazione (*)","Multiplikation (*)","Multiplicação (*)"]
["Plus (+)","Suma (+)","Plus (+)","Più (+)","Plus (+)","Plus (+)"]
["Change sign (F9)","Cambia signo (F9)","Changer de signe (F9)","Cambiare segno (F9)","Vorzeichen ändern (F9)","Muda o sinal (F9)"]
["Subtraction (-)","Resta (-)","Soustraction (-)","Sottrazione (-)","Subtraktion (-)","Subtração (-)"]
["Decimal point (. o,)","Punto decimal (. o ,)","Le point décimal (. o,)","Punto decimale (. O,)","Dezimalpunkt (. O,)","Ponto decimal (. Ó)"]
["Division (/)","División (/)","Division (/)","Divisione (/)","Division (/)","Divisão (/)"]
["Number (0)","Número (0)","Nombre (0)","Number (0)","Anzahl (0)","Número (0)"]
["Number (1)","Número (1)","Nombre (1)","Numero (1)","Anzahl (1)","Número (1)"]
["Number (2)","Número (2)","Nombre (2)","Numero (2)","Anzahl (2)","Número (2)"]
["Number (3)","Número (3)","Nombre (3)","Numero (3)","Anzahl (3)","Número (3)"]
["Number (4)","Número (4)","Nombre (4)","Numero (4)","Anzahl (4)","Número (4)"]
["Number (5)","Número (5)","Nombre (5)","Numero (5)","Anzahl (5)","Número (5)"]
["Number (6)","Número (6)","Nombre (6)","Numero (6)","Anzahl (6)","Número (6)"]
["Number (7)","Número (7)","Nombre (7)","Numero (7)","Anzahl (7)","Número (7)"]
["Number (8)","Número (8)","Nombre (8)","Numero (8)","Anzahl (8)","Número (8)"]
["Number (9)","Número (9)","Nombre (9)","Numero (9)","Anzahl (9)","Número (9)"]
["Inverse of the number (R)","Inverso del número (R)","Inverse du nombre (R)","Inverso del numero (R)","Inverse der Zahl (R)","Inverso do número (R)"]
["Operation = (Intro)","Operación = (Intro o Entrar)","Opération = (Intro)","Operazione = (Intro o Login)","Betrieb = (Intro oder Login)","Operação = (Intro ou Login)"]
["Removes the last digit (← or BACKSPACE)","Elimina último dígito (← o RETROCESO)","Efface le dernier chiffre (← ou BACKSPACE)","Rimuove l'ultima cifra (← o BACKSPACE)","Entfernt die letzte Ziffer (← oder RÜCKTASTE)","Apaga o último dígito (← ou BACKSPACE)"]
["Delete the current calculation (Esc)","Elimina el cálculo actual (Esc)","Supprimer le calcul actuel (Esc)","Elimina il calcolo corrente (Esc)","Löscht die aktuelle Berechnung (Esc)","Exclui o cálculo atual (Esc)"]
["Delete the displayed number (DELETE)","Elimina el número mostrado (SUPRIMIR)","Supprimer le numéro affiché (DELETE)","Elimina il numero visualizzato (DELETE)","Löscht die angezeigte Nummer (DELETE)","Apaga o número exibido (DELETE)"]
["Cosine (O)","Coseno (O)","Cosinus (O)","Cos (O)","Kosinus (O)","Cos (O)"]
["Hyperbolic function (H)","Función hiperbólica (H)","Fonction hyperbolique (H)","Funzione iperbolica (H)","Hyperbolische Funktion (H)","Função hiperbólica (H)"]
["Inverse function (I)","Función inversa (I)","Fonction inverse (I)","Inversa (I)","Inverse (I)","Inverse (I)"]
["Natural logarithm (N)","Logaritmo natural (N)","Logarithme naturel (N)","Logaritmo naturale (N)","Natürlicher Logarithmus (N)","Logaritmo natural (N)"]
["Common logarithm (L)","Logaritmo común (L)","Logarithme commun (L)","Logaritmo comune (L)","Gemeinsame Logarithmus (L)","Logaritmo comum (L)"]
["Memory addition (CTRL+P)","Suma en memoria (CTRL+P)","Plus de mémoire (CTRL+P)","Memoria aggiunta (CTRL+P)","Neben Memory (STRG+P)","Além da memória (ctrl+P)"]
["Clears the memory (CTRL+L)","Borra la memoria (CTRL+L)","Efface la mémoire (CTRL+L)","Cancella la memoria (CTRL+L)","Zum Löschen des Speichers (STRG+L)","Limpa a memória (ctrl+L)"]
["Retrieved from memory (CTRL+R)","Recupera de memoria (CTRL+R)","Récupérée de mémoire (CTRL+R)","Estratto da memoria (CTRL+R)","Von Speicher (STRG+R)","Obtido a partir da memória (CTRL+R)"]
["Subtract memory (CTRL+M)","Resta de memoria (CTRL+M)","Soustraire la mémoire (CTRL+M)","Sottrarre memoria (CTRL+M)","Subtrahieren Speicher (STRG+M)","Subtrair a memória (ctrl+M)"]
["Save to memory (CTRL+G)","Guarda en memoria (CTRL+G)","Enregistrer en mémoire (CTRL+G)","Salva in memoria (CTRL+G)","Im Speicher speichern (STRG+G)","Salvar na memória (CTRL+G)"]
["Factorial (!)","Factorial (!)","Factorielle (!)","Fattoriale (!)","Faktorielle (!)","Fatorial (!)"]
["Pi (P)","Número pi (P)","Pi (P)","Pi (P)","Pi (P)","Pi (P)"]
["Radians (F3)","Radianes (F3)","Radians (F3)","Radianti (F3)","Bogenmaß (F3)","Radianos (F3)"]
["Grades (F2)","Grados (F2)","Grades (F2)","Gradi (F2)","Grades (F2)","Grades (F2)"]
["Sine (S)","Seno (S)","Sine (S)","Sine (S)","Sinus (S)","Sine (S)"]
["Sqrt (Z)","Raíz cuadrada (Z)","Racine carrée (Z)","Radice quadrata (Z)","Quadratwurzel (Z)","Raiz quadrada (Z)"]
["Tangent (T)","Tangente (T)","Tangente (T)","Tangente (T)","Tangente (T)","Tangente (T)"]
["Square number (C)","Número al cuadrado (C)","Nombre carré (C)","Piazza del numero (C)","Square Zahl (C)","Quadrado do número (C)"]
["Bucket number (B)","Número al cubo (B)","Nombre Bucket (B)","Benna numero (B)","Bucket Nummer (B)","Balde número (B)"]
["x to y (Y)","x elevado a y (Y)","x  élevé à y (Y)","x  elevato alla e (Y)","x auf und (Y)","x ae (Y)"]
["Cursor left to write record (←)","Cursor izquierda escribe en un registro (←)","Curseur vers la gauche pour écrire record (←)","Cursore a sinistra una documentazione record (←)","Cursor links Aufzeichnungen geschrieben (←)","Cursor para a esquerda registros escritos (←)"]
["Right cursor to read record (→)","Cursor derecha lee un registro (→)","Le curseur droite pour lire un record (→)","Legge un record del cursore a destra (→)","Liest einen Datensatz rechte Cursor (→)","Lê um cursor para a direita registro (→)"]
["Cursor down move next record (↓)","Cursor abajo al registro siguiente (↓)","Curseur vers le bas déplacer record suivant (↓)","Cursore verso il basso per il prossimo record (↓)","Cursor nach unten auf den nächsten Datensatz (↓)","Cursor abaixo para o próximo registro (↓)"]
["Home cursor move first record (Home)","Inicio cursor al primer registro (Inicio)","Accueil record déplacer le curseur premier (Accueil)","Home cursore al primo record (Home)","Home Cursor zum ersten Datensatz (Home)","Home cursor para o primeiro registro (Home)"]
["Cursor up move previous record (↑)","Cursor arriba al registro anterior (↑)","Curseur vers le haut déplacer précédent record (↑)","Cursore fino al record precedente (↑)","Cursor bis zu den bisherigen Rekord (↑)","Cursor acima para o registro anterior (↑)"]
["Number e (E)","Número e (E)","E nombre (E)","Numero e (E)","Anzahl und (E)","Número e (E)"]
["Random number (A)","Número aleatorio (A)","Le nombre aléatoire (A)","Di numeri casuali (A)","Zufallszahl (A)","Número aleatório (A)"]
["Spacebar (Space)","Barra espaciadora (Espacio)","Barre d'espace (Space)","Barra spaziatrice (Space)","Leertaste (Space)","Barra de espaço (Space)"]
["Record a virtual keyboard (SHIFT+R)","Grabación de un teclado virtual (MAYÚS+R)","Enregistrement d'un clavier virtuel (MAJ+R)","Registrazione di una tastiera virtuale (MAIUSC+R)","Aufnahme einer virtuellen Tastatur (UMSCHALT+R)","Gravação de um teclado virtual (SHIFT+R)"]
["Play a virtual keyboard (SHIFT+P)","Reproducción de un teclado virtual (MAYÚS+P)","Play un clavier virtuel (MAJ+P)","Riproduzione di una tastiera virtuale (MAIUSC+P)","Abspielen einer virtuellen Tastatur (UMSCHALT+P)","Reprodução de um teclado virtual (SHIFT+P)"]
["Calculator help (Space)","Ayuda de la calculadora (Espacio)","Aider à la calculatrice (Space)","Utilizzando una calcolatrice (Space)","Mit einem Rechner (Space)","Usando uma calculadora (Espaço)"]
["Hide or show the memory record (SHIFT+M)","Oculta o muestra el registro de memoria (MAYÚS+M)","Afficher ou masquer le record de la mémoire (MAJ+M)","Nascondere o mostrare il record della memoria (MAIUSC+M)","Ein-oder Ausblenden der Speicher aufzeichnen (UMSCHALT+M)","Ocultar ou mostrar o registro da memória (SHIFT+M)"]
["Hide or show the cursor keys (SHIFT+C)","Oculta o muestra las flechas de cursor (MAYÚS+C)","Afficher ou masquer les touches de curseur (MAJ+C)","Nascondere o mostrare i tasti cursore (MAIUSC+C)","Ein-oder Ausblenden der Cursor-Tasten (UMSCHALT+C)","Ocultar ou mostrar as teclas do cursor (SHIFT+C)"]
["Hide or show the basic operations (SHIFT+A)","Oculta o muestra las operaciones básicas (MAYÚS+A)","Afficher ou masquer les opérations de base (MAJ+A)","Nascondere o mostrare le operazioni di base (MAIUSC+A)","Ein-oder Ausblenden der Grundoperationen (UMSCHALT+A)","Ocultar ou mostrar as operações básicas (SHIFT+A)"]
["Hide or show the logarithmic operations (SHIFT+G)","Oculta o muestra las operaciones logarítmicas (MAYÚS+G)","Afficher ou masquer les opérations logarithmique (MAJ+G)","Nascondere o mostrare il registro delle operazioni (MAIUSC+G)","Ein-oder Ausblenden der Logbuch (UMSCHALT+G)","Ocultar ou mostrar as operações de registo (SHIFT+G)"]
["Hide or show trigonometric functions (SHIFT+V)","Oculta o muestra funciones trigonométricas (MAYÚS+V)","Afficher ou masquer les fonctions trigonométriques (MAJ+V)","Nascondere o mostrare le funzioni trigonometriche (MAIUSC+V)","Ein-oder Ausblenden trigonometrischen Funktionen (UMSCHALT+V)","Ocultar ou mostrar as funções trigonométricas (SHIFT+V)"]
["Hide or show power functions (SHIFT+W)","Oculta o muestra funciones de potencia (MAYÚS+W)","Afficher ou masquer les fonctions de puissance (MAJ+W)","Nascondere o mostrare le funzioni power (MAIUSC+W)","Ein-oder Ausblenden Potenzfunktionen (UMSCHALT+W)","Ocultar ou mostrar as funções de poder (SHIFT+W)"]
["Calculator or phone keys (SHIFT+N)","Teclas de calculadora o de teléfono (MAYÚS+N)","Touches du téléphone ou calculateur (MAJ+N)","Tasti della calcolatrice o telefono (MAIUSC+N)","Rechner-Schlüssel oder Telefon (UMSCHALT+N)","Teclas da calculadora ou por telefone (SHIFT+N)"]
["Number e raised to x (SHIFT+E)","Número e elevado a x (MAYÚS+E)","E nombre élevé à x (MAJ+E)","Numero e elevato alla x (MAIUSC+E)","Anzahl e hoch x (UMSCHALT+E)","Número e elevado à x (SHIFT+E)"]
["Ten raised to x (SHIFT+X)","Diez elevado a x (MAYÚS+X)","Dix  élevé à x (MAJ+X)","Dieci elevato alla x (MAIUSC+X)","Zehn bis x (UMSCHALT+X)","Dez a x (SHIFT+X)"]
["Help 1 of 9:\nWelcome to Touch Calculator\nwith customizable floating keys\n(Press this key or the spacebar)","Ayuda 1 de 9:\nBienvenido a la calculadora táctil\ncon teclas flotantes personalizables\n(Presiona esta tecla o la barra espaciadora)","Aide 1 sur 9 :\nBienvenue dans la calculatrice tactile\navec touches flottantes personnalisables\n(Appuyez sur cette touche ou espace)","Aiuto 1 di 9:\nBenvenuto in Touch Calculator\ncon tasti mobili personalizzabili\n(Premere questo tasto o spazio)","Hilfe 1 von 9:\nWillkommen beim Touch-Rechner\nmit anpassbaren schwebenden Tasten\n(Drücken Sie diese Taste oder die Leertaste)","Ajuda 1 de 9:\nBem-vindo à calculadora de toque\ncom botões flutuantes personalizáveis\n(Pressione esta tecla ou a barra de espaço)"]
["Help 2 of 9:\nThis scientific calculator\npoint or floating point\ncalculates 15 significant digits","Ayuda 2 de 9:\nEsta calculadora científica\nde punto o coma flotante\ncalcula 15 dígitos significativos","Aide 2 sur 9 :\nCette calculatrice scientifique\nvirgule ou virgule flottante\ncalcule 15 chiffres significatifs","Aiuto 2 di 9:\nQuesta calcolatrice scientifica\npunto o virgola mobile\ncalcola 15 cifre significative","Hilfe 2 von 9:\nDieser wissenschaftliche Taschenrechner\nPunkt oder Fließkomma\nberechnet 15 signifikante Stellen","Ajuda 2 de 9:\nEsta calculadora científica\nponto ou ponto flutuante\ncalcula 15 dígitos significativos"]
["Help 3 of 9:\nDown the keyboard settings\nto activate the tooltips, the physical keyboard,\nfloating keys and language","Ayuda 3 de 9:\nAbajo la configuración del teclado\npara activar las tooltips, el teclado físico,\nlas teclas flotantes y el idioma","Aide 3 sur 9 :\nBas les paramètres du clavier\npour activer les info-bulles, le clavier physique,\ntouches flottantes et langage","Aiuto 3 di 9:\nGiù le impostazioni della tastiera\nper attivare i tooltip, la tastiera fisica,\ntasti mobili e lingua","Hilfe 3 von 9:\nRunter die Tastatureinstellungen\nzum Aktivieren der Tooltips, der physischen\nTastatur, schwebende Tasten und Sprache","Ajuda 3 de 9:\nAbaixo as configurações do teclado\npara ativar as dicas de ferramentas, o teclado\nfísico, teclas flutuantes e idioma"]
["Help 4 of 9:\nTo show or hide more keys\npress the left softkey\nwith the figure of a mouse","Ayuda 4 de 9:\nPara mostrar u ocultar más teclas\npresionar la tecla de la izquierda\ncon la figura de un ratón","Aide 4 de 9:\nPour afficher ou masquer plusieurs clés\nappuyez sur la touche programmable\nde gauche avec la figure d'une souris","Aiuto 4 di 9:\nPer mostrare o nascondere più tasti\npremere il tasto funzione sinistro\ncon la figura di un topo","Hilfe 4 von 9:\nSo blenden Sie mehrere Tasten\ndrücken Sie die linke Softkey\nmit der Figur einer Mau","Ajuda 4 de 9:\nPara mostrar ou ocultar as teclas mais\npressione a tecla esquerda\ncom a figura de um rato"]
["Help 5 of 9:\nArrow keys move up and down\nfor the 30 records on the left\ncopying and pasting the display","Ayuda 5 de 9:\nLas teclas de flecha suben y bajan\npor los 30 registros de la izquierda\ncopiando o pegando el display","Aide 5 de 9:\nLes flèches déplacent de haut en bas\npour les 30 records sur la gauche\ncopier et coller l'écran","Aiuto 5 di 9:\nI tasti freccia su e giù per spostarsi\nper le 30 records a sinistra\ncopia e incolla il display","Hilfe 5 von 9:\nDie Pfeiltasten nach oben und unten\nfür die 30 Einträge auf der linken Seite\nKopieren und Einfügen in der Anzeige","Ajuda 5 de 9:\nChaves de seta mover acima e abaixo\n30 entradas para o lado esquerdo\ncopiando e colando o display"]
["Help 6 of 9:\nRegister D: Display\nRegister C: Operand\nRecord M: Memory","Ayuda 6 de 9:\nRegistro D: Visualizador Display\nRegistro C: Operando auxiliar\nRegistro M: Memoria auxiliar","Aide 6 de 9:\nRecord D: Affichage d'Écran\nRecord C: Opérant\nRecord M: Mémoire","Aiuto 6 di 9:\nRecord D: Display\nRecord C: Scambio\nRecord M: Memoria","Hilfe 6 von 9:\nRegistrieren D: Display\nRegistrieren C:  Handel\nRegistrieren M: Memory","Ajuda 6 de 9:\nRegistre-D: Display\nRegistre-C: Operacional\nRecord M: Memória"]
["Help 7 of 9:\nChange the color of the display\nselecting one of the\nrow 1 colored cells","Ayuda 7 de 9:\nCambia el color del display\nseleccionando una de las \nceldas coloreadas de la fila 1","Aide 7 sur 9 :\nChanger la couleur de l'affichage\nen sélectionnant l'un des\nrangée 1 cellules colorées","Aiuto 7 di 9:\nCambia il colore del display\nselezionando uno dei\nriga 1 celle colorate","Hilfe 7 von 9:\nÄndern Sie die Farbe des Displays\nAuswahl eines der\nZeile 1 farbige Zellen","Ajuda 7 de 9:\nAlterar a cor do visor\nselecionando um dos\nlinha 1 células coloridas"]
["Help 8 of 9:\nEnter a number key or\npress the play button\nRecord to save the keyboard","Ayuda 8 de 9:\nIntroducir un número de teclado o\npresionar la tecla de reproducción\nGuardar el teclado con grabación","Aide 8 de 9:\nEntrez un clavier numérique ou\nappuyez sur le bouton Play\nSauvegarder le clavier","Aiuto 8 di 9:\nInserire un tastierino numerico o\npremere il pulsante play\nSalvare la registrazione della tastiera","Hilfe 8 von 9:\nGeben Sie eine Zahl Tastatur oder\ndrücken Sie die Play-Taste\nSpeichern Sie die Tastatur-Aufnahme","Ajuda 8 de 9:\nDigite um teclado numérico ou\npressione o botão \"play\"\nSalvar a gravação do teclado"]
["Help 9 of 9:\nMore information on the blog\n#ExcelPedroWave\nhttps://pedrowave.blogspot.com","Ayuda 9 de 9:\nMás información en el blog\n#ExcelPedroWave\nhttps://pedrowave.blogspot.com","Aide 9 de 9:\nPlus d'informations sur le blog\n#ExcelPedroWave\nhttps://pedrowave.blogspot.com","Aiuto 9 di 9:\nMaggiori informazioni sul blog\n#ExcelPedroWave\nhttps://pedrowave.blogspot.com","Hilfe 9 von 9:\nMehr Informationen auf dem Blog\n#ExcelPedroWave\nhttps://pedrowave.blogspot.com","Ajuda 9 de 9:\nMais informações sobre o blog\n#ExcelPedroWave\nhttps://pedrowave.blogspot.com"]
["Beta Calculator","Calculadora Beta","Beta Calculatrice","Beta Calculator","Beta-Rechner","Beta Calculadora"]
["Cube Root (SHIFT+3)","Raíz cúbica (MAYÚS+3)","Racine cubique (MAJ+3)","Cubo di root (MAIUSC+3)","Kubikwurzel (UMSCHALT+3)","Raiz cúbica (SHIFT+3)"]
["y-th Root (SHIFT+Y)","Raíz y-ésima (MAYÚS+Y)","Racine y-ième (MAJ+Y)","y-esimo root (MAIUSC+Y)","y-te Wurzel (UMSCHALT+Y)","Raiz y-ésima (SHIFT+Y)"]
["Enter the name of the new calculator","Introduzca el nombre de la nueva calculadora","Entrez le nom de la nouvelle calculatrice","Immettere il nome del nuovo calcolatore","Geben Sie den Namen des neuen Rechners","Digite o nome da nova calculadora"]
["NEW CALCULATOR","NUEVA CALCULADORA","NOUVEAU CALCULATEUR","Nuova calcolatrice","Neuer Rechner","Nova Calculadora"]
["Calculator","Calculadora","Calculateur","Calcolatrice","Rechner","Calculadora"]
["Drawing key","Dibujando tecla","Dessin clé","Disegnando tasto","Zeichnung Taste","Desenho chave"]
["Arc sine (SHIFT+S)","Arco seno (MAYÚS+S)","Arc sinus (MAJ+S)","Arcoseno (MAIUSC+S)","Arkussinus (UMSCHALT+S)","Arcsine (SHIFT+S)"]
["Arc cosine (SHIFT+O)","Arco coseno (MAYÚS+O)","Arc cosinus (MAJ+O)","Arcocoseno (MAIUSC+O)","Arkuskosinus (UMSCHALT+O)","Arccos (SHIFT+O)"]
["Arc tangent (SHIFT+T)","Arco tangente (MAYÚS+T)","Arc tangente (MAJ+T)","Arcotangente (MAIUSC+T)","Arkustangens (UMSCHALT+T)","Arctangent (SHIFT+T)"]
["Hyperbolic sine (CTRL+S)","Seno hiperbólico (CTRL+S)","Sinus hyperbolique (CTRL+S)","Seno iperbolico (CTRL+S)","Sinus Hyperbolicus (STRG+S)","Seno hiperbólico (CTRL+S)"]
["Hyperbolic cosine (CTRL+O)","Coseno hiperbólico (CTRL+O)","Cosinus hyperbolique (CTRL+O)","Coseno iperbolico (CTRL+O)","Kosinus Hyperbolicus (STRG+O)","Cosseno hiperbólico (CTRL+O)"]
["Hyperbolic tangent (CTRL+T)","Tangente hiperbólica (CTRL+T)","Tangente hyperbolique (CTRL+T)","Tangente iperbolica (CTRL+T)","Tangens Hyperbolicus (STRG+T)","Tangente hiperbólica (CTRL+T)"]
["Arc hyperbolic sine (CTRL+SHIFT+S)","Arco seno hiperbólico (CTRL+MAYÚS+S)","Arc sinus hyperbolique (CTRL+MAJ+S)","Arcoseno iperbolico (CTRL+MAIUSC+S)","Arkussinus Hyperbolicus (STRG+UMSCHALT+S)","Arco seno hiperbólico (CTRL+SHIFT+S)"]
["Arc hyperbolic cosine (CTRL+SHIFT+O)","Arco coseno hiperbólico (CTRL+MAYÚS+O)","Arc cosinus hyperbolique (CTRL+MAJ+O)","Arcocoseno iperbolico (CTRL+MAIUSC+O)","Arkuskosinus Hyperbolicus (STRG+UMSCHALT+O)","Arco cosseno hiperbólico (CTRL+SHIFT+O)"]
["Arc hyperbolic tangent (CTRL+SHIFT+T)","Arco tangente hiperbólica (CTRL+MAYÚS+T)","Arc tangente hyperbolique (CTRL+MAJ+T)","Arcotangente iperbolica (CTRL+MAIUSC+T)","Arkustangens Hyperbolicus (STRG+UMSCHALT+T)","Arco tangente hiperbólica (CTRL+SHIFT+T)"]
["Module (SHIFT+D)","Módulo (MAYÚS+D)","Module (MAJ+D)","Modulo (MAIUSC+D)","Modul (UMSCHALT+D)","Módulo (SHIFT+D)"]
["Logarithm base 2 (SHIFT+2)","Logaritmo en base 2 (MAYÚS+2)","Logarithme de base 2 (MAJ+2)","Logaritmo in base 2 (MAIUSC+2)","Logarithmus zur Basis 2 (UMSCHALT+2)","Logaritmo de base 2 (SHIFT+2)"]
["Logarithm base y (SHIFT+L)","Logaritmo en base y (MAYÚS+L)","Logarithme de base y (MAJ+L)","Logaritmo in base y (MAIUSC+L)","Logarithmus zur Basis y (UMSCHALT+L)","Logaritmo de base y (SHIFT+L)"]
["Full Calculator","Calculadora Completa","Full Calculatrice","Piena Calcolatrice","Full-Rechner","Calculadora Completo"]
["Hide or show functions (SHIFT+F)","Oculta o muestra funciones (MAYÚS+F)","Afficher ou masquer les fonctions (MAJ+F)","Nascondere o mostrare le funzioni (MAIUSC+F)","Ein-oder Ausblenden Funktionen (UMSCHALT+F)","Ocultar ou mostrar as funções (SHIFT+F)"]
["Calculator without keys","Calculadora sin teclas","Calculatrice sans touches","Calcolatrice senza tasti","Rechner ohne Tasten","Calculadora sem chave"]
["Datetime","Fecha y hora","Dateheure","Dataora","DatumUhrzeit","Data hora"]
["Datetime (CTRL+H)","Fecha y hora (CTRL+H)","Dateheure (CTRL+H)","Dataora (CTRL+H)","DatumUhrzeit (STRG+H)","Data hora (CTRL+H)"]
["Date format:","Formato fecha:","Format de date:","Formato data:","Datumsformat:","Formato de data:"]
["Basic calculator","Calculadora básica","Calculatrice de base","Calcolatore di base","Grundrechner","calculadora básica"]

{"sheet":"Cod","index":3,"n_rows":220,"n_cols":6,"rows_kept":220,"cut":false,"hidden":false,"merged":[]}
["Código","Código Marcación","Idioma","País"]
[840,1,1,"United States",null,"https://en.wikipedia.org/wiki/List_of_official_languages_by_state"]
[124,1,1,"Canada",null,"https://en.wikipedia.org/wiki/List_of_country_calling_codes"]
[643,7,1,"Russian Federation",null,"https://en.wikipedia.org/wiki/ISO_3166-1_numeric"]
[818,20,1,"Egypt"]
[710,27,1,"South Africa"]
[300,30,1,"Greece"]
[528,31,1,"Netherlands"]
[56,32,3,"Belgium"]
[250,33,3,"France"]
[724,34,2,"Spain"]
[348,36,1,"Hungary"]
[380,39,4,"Italy"]
[642,40,1,"Romania"]
[756,41,5,"Switzerland"]
[32,43,2,"Argentina"]
[40,43,5,"Austria"]
[831,44,1,"Guernsey"]
[833,44,1,"Isle of Man"]
[832,44,1,"Jersey"]
[826,44,1,"United Kingdom"]
[208,45,1,"Denmark"]
[752,46,1,"Sweden"]
[578,47,1,"Norway"]
[744,47,1,"Svalbard and Jan Mayen"]
[616,48,5,"Poland"]
[276,49,5,"Germany"]
[604,51,2,"Peru"]
[484,52,2,"Mexico"]
[192,53,1,"Cuba"]
[24,54,6,"Angola"]
[76,55,6,"Brazil"]
[152,56,2,"Chile"]
[170,57,2,"Colombia"]
[862,58,2,"Venezuela"]
[458,60,1,"Malaysia"]
[660,61,1,"Anguilla"]
[36,61,1,"Australia"]
[162,61,1,"Christmas Island"]
[166,61,1,"Cocos (Keeling) Islands"]
[360,62,1,"Indonesia"]
[608,63,2,"Philippines"]
[554,64,1,"New Zealand"]
[702,65,1,"Singapore"]
[764,66,1,"Thailand"]
[398,76,1,"Kazakhstan"]
[392,81,1,"Japan"]
[410,82,1,"South Korea"]
[704,84,1,"Vietnam"]
[156,86,1,"China"]
[792,90,1,"Turkey"]
[356,91,1,"India"]
[4,92,1,"Afghanistan"]
[586,92,1,"Pakistan"]
[144,94,1,"Sri Lanka"]
[104,95,1,"Myanmar"]
[364,98,1,"Iran"]
[8,212,1,"Albania"]
[504,212,1,"Morocco"]
[788,216,3,"Tunisia"]
[434,218,1,"Libya"]
[270,220,1,"Gambia"]
[686,221,3,"Senegal"]
[478,222,3,"Mauritania"]
[466,223,3,"Mali"]
[324,224,3,"Guinea"]
[384,225,3,"Côte d'Ivoire"]
[854,226,3,"Burkina Faso"]
[562,227,3,"Niger"]
[768,228,3,"Togo"]
[204,229,3,"Benin"]
[480,230,1,"Mauritius"]
[430,231,1,"Liberia"]
[694,232,1,"Sierra Leone"]
[288,233,1,"Ghana"]
[566,234,1,"Nigeria"]
[148,235,3,"Chad"]
[140,236,3,"Central African Republic"]
[120,237,1,"Cameroon"]
[132,238,6,"Cape Verde"]
[678,239,1,"Sao Tome and Principe"]
[226,240,2,"Equatorial Guinea"]
[266,241,3,"Gabon"]
[178,242,3,"Congo"]
[180,243,3,"Zaire"]
[20,244,3,"Andorra"]
[624,245,6,"Guinea-Bissau"]
[86,246,1,"British Indian Ocean Territory"]
[690,248,1,"Seychelles"]
[736,249,1,"Sudan"]
[646,250,1,"Rwanda"]
[231,251,1,"Ethiopia"]
[706,252,1,"Somalia"]
[262,253,1,"Djibouti"]
[404,254,1,"Kenya"]
[834,255,1,"Tanzania"]
[894,255,1,"Zambia"]
[800,256,1,"Uganda"]
[108,257,3,"Burundi"]
[508,258,6,"Mozambique"]
[887,260,1,"Yemen"]
[450,261,1,"Madagascar"]
[175,262,1,"Mayotte"]
[638,262,1,"Réunion"]
[716,263,1,"Zimbabwe"]
[516,264,1,"Namibia"]
[454,265,1,"Malawi"]
[426,266,1,"Lesotho"]
[72,267,1,"Botswana"]
[748,268,1,"Swaziland"]
[174,269,3,"Comoros"]
[654,290,1,"Saint Helena, Ascension and Tristan da Cunha"]
[232,291,1,"Eritrea"]
[533,297,1,"Aruba"]
[234,298,1,"Faroe Islands"]
[304,299,1,"Greenland"]
[292,350,1,"Gibraltar"]
[620,351,5,"Portugal"]
[442,352,3,"Luxembourg"]
[248,353,1,"Åland Islands"]
[372,353,1,"Ireland"]
[352,354,1,"Iceland"]
[470,356,1,"Malta"]
[196,357,1,"Cyprus"]
[246,358,1,"Finland"]
[100,359,1,"Bulgaria"]
[440,370,1,"Lithuania"]
[428,371,1,"Latvia"]
[233,372,1,"Estonia"]
[498,373,1,"Moldova, Republic of"]
[51,374,1,"Armenia"]
[112,375,1,"Belarus"]
[12,376,3,"Algeria"]
[492,377,3,"Monaco"]
[674,378,4,"San Marino"]
[336,379,4,"Holy See (Vatican City State)"]
[804,380,1,"Ukraine"]
[688,381,1,"Serbia"]
[499,382,1,"Montenegro"]
[191,385,1,"Croatia"]
[705,386,1,"Slovenia"]
[70,387,1,"Bosnia and Herzegovina"]
[807,389,1,"Macedonia"]
[203,420,1,"Czech Republic"]
[703,421,1,"Slovakia"]
[438,423,5,"Liechtenstein"]
[238,500,1,"Falkland Islands (Malvinas)"]
[239,500,1,"South Georgia and the South Sandwich Islands"]
[84,501,1,"Belize"]
[320,502,2,"Guatemala"]
[222,503,2,"El Salvador"]
[340,504,2,"Honduras"]
[558,505,2,"Nicaragua"]
[188,506,2,"Costa Rica"]
[591,507,2,"Panama"]
[666,508,1,"Saint Pierre and Miquelon"]
[332,509,2,"Haiti"]
[312,590,3,"Guadeloupe"]
[652,590,3,"Saint Barthélemy"]
[663,590,3,"Saint Martin (French part)"]
[68,591,2,"Bolivia"]
[328,592,1,"Guyana"]
[218,593,2,"Ecuador"]
[254,594,3,"French Guiana"]
[600,595,2,"Paraguay"]
[260,596,3,"French Antilles"]
[474,596,3,"Martinique"]
[740,597,1,"Suriname"]
[858,598,2,"Uruguay"]
[535,599,1,"Bonaire, Saint Eustatius and Saba"]
[531,599,1,"Curaçao"]
[574,672,1,"Norfolk Island"]
[96,673,1,"Brunei Darussalam"]
[520,674,1,"Nauru"]
[598,675,1,"Papua New Guinea"]
[776,676,1,"Tonga"]
[90,677,1,"Solomon Islands"]
[548,678,1,"Vanuatu"]
[242,679,1,"Fiji"]
[585,680,1,"Palau"]
[876,681,1,"Wallis and Futuna"]
[184,682,1,"Cook Islands"]
[570,683,1,"Niue"]
[882,685,1,"Samoa"]
[296,686,1,"Kiribati"]
[540,687,1,"New Caledonia"]
[798,688,1,"Tuvalu"]
[258,689,3,"French Polynesia"]
[772,690,1,"Tokelau"]
[583,691,1,"Micronesia, Federated States of"]
[584,692,1,"Marshall Islands"]
[408,850,1,"North Korea"]
[344,852,1,"Hong Kong"]
[446,853,1,"Macao"]
[116,855,1,"Cambodia"]
[418,856,1,"Laos"]
[50,880,1,"Bangladesh"]
[158,886,1,"Taiwan"]
[462,960,1,"Maldives"]
[422,961,1,"Lebanon"]
[400,962,1,"Jordan"]
[760,963,1,"Syria"]
[368,964,1,"Iraq"]
[414,965,1,"Kuwait"]
[682,966,1,"Saudi Arabia"]
[732,967,1,"Western Sahara"]
[512,968,1,"Oman"]
[275,970,1,"Palestinian territories"]
[784,971,1,"United Arab Emirates"]
[376,972,1,"Israel"]
[48,973,1,"Bahrain"]
[634,974,1,"Qatar"]
[64,975,1,"Bhutan"]
[496,976,1,"Mongolia"]
[524,977,1,"Nepal"]
[762,992,1,"Tajikistan"]
[795,993,1,"Turkmenistan"]
[268,995,1,"Georgia"]
[417,996,1,"Kyrgyzstan"]
[860,998,1,"Uzbekistan"]

{"sheet":"Teclado","index":4,"n_rows":127,"n_cols":9,"rows_kept":127,"cut":false,"hidden":false,"merged":[]}
["Nombre","Botón","Tecla","Código","Procedimiento","Operación (Tecla equivalente)",null,"Teclado","Número"]
["Tecla%","%","SHIFT+%","+{%}","TK_Porcentaje",{"$f":"VLOOKUP(Idiomas!$A$11,Trans,miNumIdioma,FALSE)","v":"Porcentaje (%)"},null,{"$f":"IFERROR(I2&\" - \"&INDIRECT(\"Teclas\"&I2&\"!$A$1\"),\"\")","v":"0 - Calculadora táctil"},0]
["Teclax","*","*","{106}","NK_Multiplicar",{"$f":"VLOOKUP(Idiomas!$A$12,Trans,miNumIdioma,FALSE)","v":"Multiplicación (*)"},null,{"$f":"IFERROR(I3&\" - \"&INDIRECT(\"Teclas\"&I3&\"!$A$1\"),\"\")","v":"1 - Mi primera calculadora"},1]
["Teclax","*","*","*","TK_Multiplicar",{"$f":"VLOOKUP(Idiomas!$A$12,Trans,miNumIdioma,FALSE)","v":"Multiplicación (*)"},null,{"$f":"IFERROR(I4&\" - \"&INDIRECT(\"Teclas\"&I4&\"!$A$1\"),\"\")","v":"2 - Calculadora Microsoft"},2]
["Tecla+","+","+","{107}","NK_Sumar",{"$f":"VLOOKUP(Idiomas!$A$13,Trans,miNumIdioma,FALSE)","v":"Suma (+)"},null,{"$f":"IFERROR(I5&\" - \"&INDIRECT(\"Teclas\"&I5&\"!$A$1\"),\"\")","v":"3 - Calculadora Celular"},3]
["Tecla+","+","+","{+}","TK_Sumar",{"$f":"VLOOKUP(Idiomas!$A$13,Trans,miNumIdioma,FALSE)","v":"Suma (+)"},null,{"$f":"IFERROR(I6&\" - \"&INDIRECT(\"Teclas\"&I6&\"!$A$1\"),\"\")","v":"4 - Mini-Calculadora"},4]
["Teclan","+/-","F9","{F9}","TK_F9",{"$f":"VLOOKUP(Idiomas!$A$14,Trans,miNumIdioma,FALSE)","v":"Cambia signo (F9)"},null,{"$f":"IFERROR(I7&\" - \"&INDIRECT(\"Teclas\"&I7&\"!$A$1\"),\"\")","v":"5 - Calculadora Beta"},5]
["Tecla-","-","-","{109}","NK_Restar",{"$f":"VLOOKUP(Idiomas!$A$15,Trans,miNumIdioma,FALSE)","v":"Resta (-)"},null,{"$f":"IFERROR(I8&\" - \"&INDIRECT(\"Teclas\"&I8&\"!$A$1\"),\"\")","v":"6 - Calculadora Completa"},6]
["Tecla-","-","-","-","TK_Restar",{"$f":"VLOOKUP(Idiomas!$A$15,Trans,miNumIdioma,FALSE)","v":"Resta (-)"},null,{"$f":"IFERROR(I9&\" - \"&INDIRECT(\"Teclas\"&I9&\"!$A$1\"),\"\")","v":"7 - Calculadora sin teclas"},7]
["Tecla.",".",".","{110}","NK_Punto",{"$f":"VLOOKUP(Idiomas!$A$16,Trans,miNumIdioma,FALSE)","v":"Punto decimal (. o ,)"},null,{"$f":"IFERROR(I10&\" - \"&INDIRECT(\"Teclas\"&I10&\"!$A$1\"),\"\")","v":"8 - Calculadora básica"},8]
["Tecla.",".",".",".","TK_Punto",{"$f":"VLOOKUP(Idiomas!$A$16,Trans,miNumIdioma,FALSE)","v":"Punto decimal (. o ,)"},null,{"$f":"IFERROR(I11&\" - \"&INDIRECT(\"Teclas\"&I11&\"!$A$1\"),\"\")","v":""},9]
["Tecla.",".",",",",","TK_Coma",{"$f":"VLOOKUP(Idiomas!$A$16,Trans,miNumIdioma,FALSE)","v":"Punto decimal (. o ,)"},null,{"$f":"IFERROR(I12&\" - \"&INDIRECT(\"Teclas\"&I12&\"!$A$1\"),\"\")","v":""},10]
["Tecla/","/","/","{111}","NK_Dividir",{"$f":"VLOOKUP(Idiomas!$A$17,Trans,miNumIdioma,FALSE)","v":"División (/)"},null,{"$f":"IFERROR(I13&\" - \"&INDIRECT(\"Teclas\"&I13&\"!$A$1\"),\"\")","v":""},11]
["Tecla/","/","/","/","TK_Dividir",{"$f":"VLOOKUP(Idiomas!$A$17,Trans,miNumIdioma,FALSE)","v":"División (/)"},null,{"$f":"IFERROR(I14&\" - \"&INDIRECT(\"Teclas\"&I14&\"!$A$1\"),\"\")","v":""},12]
["Tecla0",0,0,0,"TK_0",{"$f":"VLOOKUP(Idiomas!$A$18,Trans,miNumIdioma,FALSE)","v":"Número (0)"},null,{"$f":"IFERROR(I15&\" - \"&INDIRECT(\"Teclas\"&I15&\"!$A$1\"),\"\")","v":""},13]
["Tecla1",1,1,1,"TK_1",{"$f":"VLOOKUP(Idiomas!$A$19,Trans,miNumIdioma,FALSE)","v":"Número (1)"},null,{"$f":"IFERROR(I16&\" - \"&INDIRECT(\"Teclas\"&I16&\"!$A$1\"),\"\")","v":""},14]
["Tecla2",2,2,2,"TK_2",{"$f":"VLOOKUP(Idiomas!$A$20,Trans,miNumIdioma,FALSE)","v":"Número (2)"},null,{"$f":"IFERROR(I17&\" - \"&INDIRECT(\"Teclas\"&I17&\"!$A$1\"),\"\")","v":""},15]
["Tecla3",3,3,3,"TK_3",{"$f":"VLOOKUP(Idiomas!$A$21,Trans,miNumIdioma,FALSE)","v":"Número (3)"},null,{"$f":"IFERROR(I18&\" - \"&INDIRECT(\"Teclas\"&I18&\"!$A$1\"),\"\")","v":""},16]
["Tecla4",4,4,4,"TK_4",{"$f":"VLOOKUP(Idiomas!$A$22,Trans,miNumIdioma,FALSE)","v":"Número (4)"},null,{"$f":"IFERROR(I19&\" - \"&INDIRECT(\"Teclas\"&I19&\"!$A$1\"),\"\")","v":""},17]
["Tecla5",5,5,5,"TK_5",{"$f":"VLOOKUP(Idiomas!$A$23,Trans,miNumIdioma,FALSE)","v":"Número (5)"},null,{"$f":"IFERROR(I20&\" - \"&INDIRECT(\"Teclas\"&I20&\"!$A$1\"),\"\")","v":""},18]
["Tecla6",6,6,6,"TK_6",{"$f":"VLOOKUP(Idiomas!$A$24,Trans,miNumIdioma,FALSE)","v":"Número (6)"},null,{"$f":"IFERROR(I21&\" - \"&INDIRECT(\"Teclas\"&I21&\"!$A$1\"),\"\")","v":""},19]
["Tecla7",7,7,7,"TK_7",{"$f":"VLOOKUP(Idiomas!$A$25,Trans,miNumIdioma,FALSE)","v":"Número (7)"},null,{"$f":"IFERROR(I22&\" - \"&INDIRECT(\"Teclas\"&I22&\"!$A$1\"),\"\")","v":""},20]
["Tecla8",8,8,8,"TK_8",{"$f":"VLOOKUP(Idiomas!$A$26,Trans,miNumIdioma,FALSE)","v":"Número (8)"},null,{"$f":"IFERROR(I23&\" - \"&INDIRECT(\"Teclas\"&I23&\"!$A$1\"),\"\")","v":""},21]
["Tecla9",9,9,9,"TK_9",{"$f":"VLOOKUP(Idiomas!$A$27,Trans,miNumIdioma,FALSE)","v":"Número (9)"},null,{"$f":"IFERROR(I24&\" - \"&INDIRECT(\"Teclas\"&I24&\"!$A$1\"),\"\")","v":""},22]
["Tecla0",0,0,"{96}","NK_0",{"$f":"VLOOKUP(Idiomas!$A$18,Trans,miNumIdioma,FALSE)","v":"Número (0)"},null,{"$f":"IFERROR(I25&\" - \"&INDIRECT(\"Teclas\"&I25&\"!$A$1\"),\"\")","v":""},23]
["Tecla1",1,1,"{97}","NK_1",{"$f":"VLOOKUP(Idiomas!$A$19,Trans,miNumIdioma,FALSE)","v":"Número (1)"},null,{"$f":"IFERROR(I26&\" - \"&INDIRECT(\"Teclas\"&I26&\"!$A$1\"),\"\")","v":""},24]
["Tecla2",2,2,"{98}","NK_2",{"$f":"VLOOKUP(Idiomas!$A$20,Trans,miNumIdioma,FALSE)","v":"Número (2)"},null,{"$f":"IFERROR(I27&\" - \"&INDIRECT(\"Teclas\"&I27&\"!$A$1\"),\"\")","v":""},25]
["Tecla3",3,3,"{99}","NK_3",{"$f":"VLOOKUP(Idiomas!$A$21,Trans,miNumIdioma,FALSE)","v":"Número (3)"},null,{"$f":"IFERROR(I28&\" - \"&INDIRECT(\"Teclas\"&I28&\"!$A$1\"),\"\")","v":""},26]
["Tecla4",4,4,"{100}","NK_4",{"$f":"VLOOKUP(Idiomas!$A$22,Trans,miNumIdioma,FALSE)","v":"Número (4)"},null,{"$f":"IFERROR(I29&\" - \"&INDIRECT(\"Teclas\"&I29&\"!$A$1\"),\"\")","v":""},27]
["Tecla5",5,5,"{101}","NK_5",{"$f":"VLOOKUP(Idiomas!$A$23,Trans,miNumIdioma,FALSE)","v":"Número (5)"},null,{"$f":"IFERROR(I30&\" - \"&INDIRECT(\"Teclas\"&I30&\"!$A$1\"),\"\")","v":""},28]
["Tecla6",6,6,"{102}","NK_6",{"$f":"VLOOKUP(Idiomas!$A$24,Trans,miNumIdioma,FALSE)","v":"Número (6)"},null,{"$f":"IFERROR(I31&\" - \"&INDIRECT(\"Teclas\"&I31&\"!$A$1\"),\"\")","v":""},29]
["Tecla7",7,7,"{103}","NK_7",{"$f":"VLOOKUP(Idiomas!$A$25,Trans,miNumIdioma,FALSE)","v":"Número (7)"},null,{"$f":"IFERROR(I32&\" - \"&INDIRECT(\"Teclas\"&I32&\"!$A$1\"),\"\")","v":""},30]
["Tecla8",8,8,"{104}","NK_8",{"$f":"VLOOKUP(Idiomas!$A$26,Trans,miNumIdioma,FALSE)","v":"Número (8)"},null,{"$f":"IFERROR(I33&\" - \"&INDIRECT(\"Teclas\"&I33&\"!$A$1\"),\"\")","v":""},31]
["Tecla9",9,9,"{105}","NK_9",{"$f":"VLOOKUP(Idiomas!$A$27,Trans,miNumIdioma,FALSE)","v":"Número (9)"},null,{"$f":"IFERROR(I34&\" - \"&INDIRECT(\"Teclas\"&I34&\"!$A$1\"),\"\")","v":""},32]
["Teclai","1/x","r","r","TK_r",{"$f":"VLOOKUP(Idiomas!$A$28,Trans,miNumIdioma,FALSE)","v":"Inverso del número (R)"},null,{"$f":"IFERROR(I35&\" - \"&INDIRECT(\"Teclas\"&I35&\"!$A$1\"),\"\")","v":""},33]
["Tecla=","=","ENTRAR","~","TK_Intro",{"$f":"VLOOKUP(Idiomas!$A$29,Trans,miNumIdioma,FALSE)","v":"Operación = (Intro o Entrar)"},null,{"$f":"IFERROR(I36&\" - \"&INDIRECT(\"Teclas\"&I36&\"!$A$1\"),\"\")","v":""},34]
["Tecla=","=","ENTRAR","{ENTER}","NK_Intro",{"$f":"VLOOKUP(Idiomas!$A$29,Trans,miNumIdioma,FALSE)","v":"Operación = (Intro o Entrar)"},null,{"$f":"IFERROR(I37&\" - \"&INDIRECT(\"Teclas\"&I37&\"!$A$1\"),\"\")","v":""},35]
["TeclaCL","Retroceso","RETROCESO","{BACKSPACE}","TK_Retroceso",{"$f":"VLOOKUP(Idiomas!$A$30,Trans,miNumIdioma,FALSE)","v":"Elimina último dígito (← o RETROCESO)"},null,{"$f":"IFERROR(I38&\" - \"&INDIRECT(\"Teclas\"&I38&\"!$A$1\"),\"\")","v":""},36]
["TeclaCA","C","ESC","{ESC}","TK_Escape",{"$f":"VLOOKUP(Idiomas!$A$31,Trans,miNumIdioma,FALSE)","v":"Elimina el cálculo actual (Esc)"},null,{"$f":"IFERROR(I39&\" - \"&INDIRECT(\"Teclas\"&I39&\"!$A$1\"),\"\")","v":""},37]
["TeclaCE","CE","DEL","{DELETE}","TK_Borrar",{"$f":"VLOOKUP(Idiomas!$A$32,Trans,miNumIdioma,FALSE)","v":"Elimina el número mostrado (SUPRIMIR)"},null,{"$f":"IFERROR(I40&\" - \"&INDIRECT(\"Teclas\"&I40&\"!$A$1\"),\"\")","v":""},38]
["Teclacs","cos","o","o","TK_o",{"$f":"VLOOKUP(Idiomas!$A$33,Trans,miNumIdioma,FALSE)","v":"Coseno (O)"},null,{"$f":"IFERROR(I41&\" - \"&INDIRECT(\"Teclas\"&I41&\"!$A$1\"),\"\")","v":""},39]
["TeclaIH","Hyp","h","h","TK_h",{"$f":"VLOOKUP(Idiomas!$A$34,Trans,miNumIdioma,FALSE)","v":"Función hiperbólica (H)"},null,{"$f":"IFERROR(I42&\" - \"&INDIRECT(\"Teclas\"&I42&\"!$A$1\"),\"\")","v":""},40]
["TeclaIH","Inv","i","i","TK_i",{"$f":"VLOOKUP(Idiomas!$A$35,Trans,miNumIdioma,FALSE)","v":"Función inversa (I)"},null,{"$f":"IFERROR(I43&\" - \"&INDIRECT(\"Teclas\"&I43&\"!$A$1\"),\"\")","v":""},41]
["Teclaln","In","n","n","TK_n",{"$f":"VLOOKUP(Idiomas!$A$36,Trans,miNumIdioma,FALSE)","v":"Logaritmo natural (N)"},null,{"$f":"IFERROR(I44&\" - \"&INDIRECT(\"Teclas\"&I44&\"!$A$1\"),\"\")","v":""},42]
["Teclalg","log","l","l","TK_l",{"$f":"VLOOKUP(Idiomas!$A$37,Trans,miNumIdioma,FALSE)","v":"Logaritmo común (L)"},null,{"$f":"IFERROR(I45&\" - \"&INDIRECT(\"Teclas\"&I45&\"!$A$1\"),\"\")","v":""},43]
["TeclaM+","M+","CTRL+P","^p","TK_ControlP",{"$f":"VLOOKUP(Idiomas!$A$38,Trans,miNumIdioma,FALSE)","v":"Suma en memoria (CTRL+P)"},null,{"$f":"IFERROR(I46&\" - \"&INDIRECT(\"Teclas\"&I46&\"!$A$1\"),\"\")","v":""},44]
["TeclaMC","MC","CTRL+L","^l","TK_ControlL",{"$f":"VLOOKUP(Idiomas!$A$39,Trans,miNumIdioma,FALSE)","v":"Borra la memoria (CTRL+L)"},null,{"$f":"IFERROR(I47&\" - \"&INDIRECT(\"Teclas\"&I47&\"!$A$1\"),\"\")","v":""},45]
["TeclaMR","MR","CTRL+R","^r","TK_ControlR",{"$f":"VLOOKUP(Idiomas!$A$40,Trans,miNumIdioma,FALSE)","v":"Recupera de memoria (CTRL+R)"},null,{"$f":"IFERROR(I48&\" - \"&INDIRECT(\"Teclas\"&I48&\"!$A$1\"),\"\")","v":""},46]
["TeclaM-","M-","CTRL+M","^m","TK_ControlM",{"$f":"VLOOKUP(Idiomas!$A$41,Trans,miNumIdioma,FALSE)","v":"Resta de memoria (CTRL+M)"},null,{"$f":"IFERROR(I49&\" - \"&INDIRECT(\"Teclas\"&I49&\"!$A$1\"),\"\")","v":""},47]
["TeclaMS","MS","CTRL+G","^g","TK_ControlG",{"$f":"VLOOKUP(Idiomas!$A$42,Trans,miNumIdioma,FALSE)","v":"Guarda en memoria (CTRL+G)"},null,{"$f":"IFERROR(I50&\" - \"&INDIRECT(\"Teclas\"&I50&\"!$A$1\"),\"\")","v":""},48]
["Teclan!","n!","!","!","TK_Admiracion",{"$f":"VLOOKUP(Idiomas!$A$43,Trans,miNumIdioma,FALSE)","v":"Factorial (!)"},null,{"$f":"IFERROR(I51&\" - \"&INDIRECT(\"Teclas\"&I51&\"!$A$1\"),\"\")","v":""},49]
["TeclaPi","pi","p","p","TK_p",{"$f":"VLOOKUP(Idiomas!$A$44,Trans,miNumIdioma,FALSE)","v":"Número pi (P)"},null,{"$f":"IFERROR(I52&\" - \"&INDIRECT(\"Teclas\"&I52&\"!$A$1\"),\"\")","v":""},50]
["TeclaGR","Radián","F3","{F3}","TK_F3",{"$f":"VLOOKUP(Idiomas!$A$45,Trans,miNumIdioma,FALSE)","v":"Radianes (F3)"},null,{"$f":"IFERROR(I53&\" - \"&INDIRECT(\"Teclas\"&I53&\"!$A$1\"),\"\")","v":""},51]
["TeclaGR","Sexagesimal","F2","{F2}","TK_F2",{"$f":"VLOOKUP(Idiomas!$A$46,Trans,miNumIdioma,FALSE)","v":"Grados (F2)"},null,{"$f":"IFERROR(I54&\" - \"&INDIRECT(\"Teclas\"&I54&\"!$A$1\"),\"\")","v":""},52]
["Teclasn","sin","s","s","TK_s",{"$f":"VLOOKUP(Idiomas!$A$47,Trans,miNumIdioma,FALSE)","v":"Seno (S)"},null,{"$f":"IFERROR(I55&\" - \"&INDIRECT(\"Teclas\"&I55&\"!$A$1\"),\"\")","v":""},53]
["Teclar","sqrt","z","z","TK_sqrt",{"$f":"VLOOKUP(Idiomas!$A$48,Trans,miNumIdioma,FALSE)","v":"Raíz cuadrada (Z)"},null,{"$f":"IFERROR(I56&\" - \"&INDIRECT(\"Teclas\"&I56&\"!$A$1\"),\"\")","v":""},54]
["Teclatn","tan","t","t","TK_t",{"$f":"VLOOKUP(Idiomas!$A$49,Trans,miNumIdioma,FALSE)","v":"Tangente (T)"},null,{"$f":"IFERROR(I57&\" - \"&INDIRECT(\"Teclas\"&I57&\"!$A$1\"),\"\")","v":""},55]
["Teclax2","x^2","c","c","TK_Cuadrado",{"$f":"VLOOKUP(Idiomas!$A$50,Trans,miNumIdioma,FALSE)","v":"Número al cuadrado (C)"},null,{"$f":"IFERROR(I58&\" - \"&INDIRECT(\"Teclas\"&I58&\"!$A$1\"),\"\")","v":""},56]
["Teclax3","x^3","b","b","TK_Cubo",{"$f":"VLOOKUP(Idiomas!$A$51,Trans,miNumIdioma,FALSE)","v":"Número al cubo (B)"},null,{"$f":"IFERROR(I59&\" - \"&INDIRECT(\"Teclas\"&I59&\"!$A$1\"),\"\")","v":""},57]
["Teclaxy","x^y","y","y","TK_y",{"$f":"VLOOKUP(Idiomas!$A$52,Trans,miNumIdioma,FALSE)","v":"x elevado a y (Y)"},null,{"$f":"IFERROR(I60&\" - \"&INDIRECT(\"Teclas\"&I60&\"!$A$1\"),\"\")","v":""},58]
["Tecla<-","Izquierda","←","{LEFT}","TK_Izquierda",{"$f":"VLOOKUP(Idiomas!$A$53,Trans,miNumIdioma,FALSE)","v":"Cursor izquierda escribe en un registro (←)"},null,{"$f":"IFERROR(I61&\" - \"&INDIRECT(\"Teclas\"&I61&\"!$A$1\"),\"\")","v":""},59]
["Tecla->","Derecha","→","{RIGHT}","TK_Derecha",{"$f":"VLOOKUP(Idiomas!$A$54,Trans,miNumIdioma,FALSE)","v":"Cursor derecha lee un registro (→)"},null,{"$f":"IFERROR(I62&\" - \"&INDIRECT(\"Teclas\"&I62&\"!$A$1\"),\"\")","v":""},60]
["Teclav>","Abajo","↓","{DOWN}","TK_Abajo",{"$f":"VLOOKUP(Idiomas!$A$55,Trans,miNumIdioma,FALSE)","v":"Cursor abajo al registro siguiente (↓)"},null,{"$f":"IFERROR(I63&\" - \"&INDIRECT(\"Teclas\"&I63&\"!$A$1\"),\"\")","v":""},61]
["Teclao>","Inicio","Inicio","{HOME}","TK_Inicio",{"$f":"VLOOKUP(Idiomas!$A$56,Trans,miNumIdioma,FALSE)","v":"Inicio cursor al primer registro (Inicio)"},null,{"$f":"IFERROR(I64&\" - \"&INDIRECT(\"Teclas\"&I64&\"!$A$1\"),\"\")","v":""},62]
["Tecla^>","Arriba","↑","{UP}","TK_Arriba",{"$f":"VLOOKUP(Idiomas!$A$57,Trans,miNumIdioma,FALSE)","v":"Cursor arriba al registro anterior (↑)"},null,{"$f":"IFERROR(I65&\" - \"&INDIRECT(\"Teclas\"&I65&\"!$A$1\"),\"\")","v":""},63]
["Teclae","e","e","e","TK_e",{"$f":"VLOOKUP(Idiomas!$A$58,Trans,miNumIdioma,FALSE)","v":"Número e (E)"},null,{"$f":"IFERROR(I66&\" - \"&INDIRECT(\"Teclas\"&I66&\"!$A$1\"),\"\")","v":""},64]
["Teclale","Rnd","a","a","TK_a",{"$f":"VLOOKUP(Idiomas!$A$59,Trans,miNumIdioma,FALSE)","v":"Número aleatorio (A)"},null,{"$f":"IFERROR(I67&\" - \"&INDIRECT(\"Teclas\"&I67&\"!$A$1\"),\"\")","v":""},65]
["TeclaSP","Espacio"," "," ","TK_espacio",{"$f":"VLOOKUP(Idiomas!$A$60,Trans,miNumIdioma,FALSE)","v":"Barra espaciadora (Espacio)"},null,{"$f":"IFERROR(I68&\" - \"&INDIRECT(\"Teclas\"&I68&\"!$A$1\"),\"\")","v":""},66]
["TeclaGP","Grabar","SHIFT+R","+r","TK_Grabar",{"$f":"VLOOKUP(Idiomas!$A$61,Trans,miNumIdioma,FALSE)","v":"Grabación de un teclado virtual (MAYÚS+R)"},null,{"$f":"IFERROR(I69&\" - \"&INDIRECT(\"Teclas\"&I69&\"!$A$1\"),\"\")","v":""},67]
["TeclaRP","Reproducir","SHIFT+P","+p","TK_Reproducir",{"$f":"VLOOKUP(Idiomas!$A$62,Trans,miNumIdioma,FALSE)","v":"Reproducción de un teclado virtual (MAYÚS+P)"},null,{"$f":"IFERROR(I70&\" - \"&INDIRECT(\"Teclas\"&I70&\"!$A$1\"),\"\")","v":""},68]
["Teclaes","Ayuda"," "," ","TK_Ayuda",{"$f":"VLOOKUP(Idiomas!$A$63,Trans,miNumIdioma,FALSE)","v":"Ayuda de la calculadora (Espacio)"},null,{"$f":"IFERROR(I71&\" - \"&INDIRECT(\"Teclas\"&I71&\"!$A$1\"),\"\")","v":""},69]
["TeclaTM","Memoria visible","SHIFT+M","+m","TK_Memora",{"$f":"VLOOKUP(Idiomas!$A$64,Trans,miNumIdioma,FALSE)","v":"Oculta o muestra el registro de memoria (MAYÚS+M)"},null,{"$f":"IFERROR(I72&\" - \"&INDIRECT(\"Teclas\"&I72&\"!$A$1\"),\"\")","v":""},70]
["TeclaTR","Cursor visible","SHIFT+C","+c","TK_Cursor",{"$f":"VLOOKUP(Idiomas!$A$65,Trans,miNumIdioma,FALSE)","v":"Oculta o muestra las flechas de cursor (MAYÚS+C)"},null,{"$f":"IFERROR(I73&\" - \"&INDIRECT(\"Teclas\"&I73&\"!$A$1\"),\"\")","v":""},71]
["TeclaTT","Operación visible","SHIFT+A","+a","TK_Opera",{"$f":"VLOOKUP(Idiomas!$A$66,Trans,miNumIdioma,FALSE)","v":"Oculta o muestra las operaciones básicas (MAYÚS+A)"},null,{"$f":"IFERROR(I74&\" - \"&INDIRECT(\"Teclas\"&I74&\"!$A$1\"),\"\")","v":""},72]
["TeclaTL","Logaritmo visible","SHIFT+G","+g","TK_Logaritmo",{"$f":"VLOOKUP(Idiomas!$A$67,Trans,miNumIdioma,FALSE)","v":"Oculta o muestra las operaciones logarítmicas (MAYÚS+G)"},null,{"$f":"IFERROR(I75&\" - \"&INDIRECT(\"Teclas\"&I75&\"!$A$1\"),\"\")","v":""},73]
["TeclaTS","Trigonometría visible","SHIFT+V","+v","TK_Trigono",{"$f":"VLOOKUP(Idiomas!$A$68,Trans,miNumIdioma,FALSE)","v":"Oculta o muestra funciones trigonométricas (MAYÚS+V)"},null,{"$f":"IFERROR(I76&\" - \"&INDIRECT(\"Teclas\"&I76&\"!$A$1\"),\"\")","v":""},74]
["TeclaTP","Potencia visible","SHIFT+W","+w","TK_Potencia",{"$f":"VLOOKUP(Idiomas!$A$69,Trans,miNumIdioma,FALSE)","v":"Oculta o muestra funciones de potencia (MAYÚS+W)"},null,{"$f":"IFERROR(I77&\" - \"&INDIRECT(\"Teclas\"&I77&\"!$A$1\"),\"\")","v":""},75]
["TeclaTC","Calculadora/Teléfono","SHIFT+N","+n","TK_TeleCalc",{"$f":"VLOOKUP(Idiomas!$A$70,Trans,miNumIdioma,FALSE)","v":"Teclas de calculadora o de teléfono (MAYÚS+N)"},null,{"$f":"IFERROR(I78&\" - \"&INDIRECT(\"Teclas\"&I78&\"!$A$1\"),\"\")","v":""},76]
["Teclaex","e^x","SHIFT+e","+e","TK_ex",{"$f":"VLOOKUP(Idiomas!$A$71,Trans,miNumIdioma,FALSE)","v":"Número e elevado a x (MAYÚS+E)"},null,{"$f":"IFERROR(I79&\" - \"&INDIRECT(\"Teclas\"&I79&\"!$A$1\"),\"\")","v":""},77]
["Teclax1","10^x","SHIFT+x","+x","TK_10x",{"$f":"VLOOKUP(Idiomas!$A$72,Trans,miNumIdioma,FALSE)","v":"Diez elevado a x (MAYÚS+X)"},null,{"$f":"IFERROR(I80&\" - \"&INDIRECT(\"Teclas\"&I80&\"!$A$1\"),\"\")","v":""},78]
["Teclar3","sqrt(x,3)","SHIFT+3","+3","TK_raizcubica",{"$f":"VLOOKUP(Idiomas!$A$83,Trans,miNumIdioma,FALSE)","v":"Raíz cúbica (MAYÚS+3)"},null,{"$f":"IFERROR(I81&\" - \"&INDIRECT(\"Teclas\"&I81&\"!$A$1\"),\"\")","v":""},79]
["Teclary","sqrt(x,y)","SHIFT+y","+y","TK_raizy",{"$f":"VLOOKUP(Idiomas!$A$84,Trans,miNumIdioma,FALSE)","v":"Raíz y-ésima (MAYÚS+Y)"},null,{"$f":"IFERROR(I82&\" - \"&INDIRECT(\"Teclas\"&I82&\"!$A$1\"),\"\")","v":""},80]
["TeclaTG","Funciones visibles","SHIFT+F","+f","TK_Func",{"$f":"VLOOKUP(Idiomas!$A$102,Trans,miNumIdioma,FALSE)","v":"Oculta o muestra funciones (MAYÚS+F)"},null,{"$f":"IFERROR(I83&\" - \"&INDIRECT(\"Teclas\"&I83&\"!$A$1\"),\"\")","v":""},81]
["Teclaas","asin","SHIFT+s","+s","TK_asin",{"$f":"VLOOKUP(Idiomas!$A$89,Trans,miNumIdioma,FALSE)","v":"Arco seno (MAYÚS+S)"},null,{"$f":"IFERROR(I84&\" - \"&INDIRECT(\"Teclas\"&I84&\"!$A$1\"),\"\")","v":""},82]
["Teclaac","acos","SHIFT+o","+o","TK_acos",{"$f":"VLOOKUP(Idiomas!$A$90,Trans,miNumIdioma,FALSE)","v":"Arco coseno (MAYÚS+O)"},null,{"$f":"IFERROR(I85&\" - \"&INDIRECT(\"Teclas\"&I85&\"!$A$1\"),\"\")","v":""},83]
["Teclaat","atan","SHIFT+t","+t","TK_atan",{"$f":"VLOOKUP(Idiomas!$A$91,Trans,miNumIdioma,FALSE)","v":"Arco tangente (MAYÚS+T)"},null,{"$f":"IFERROR(I86&\" - \"&INDIRECT(\"Teclas\"&I86&\"!$A$1\"),\"\")","v":""},84]
["Teclash","sinh","CTRL+s","^s","TK_sinh",{"$f":"VLOOKUP(Idiomas!$A$92,Trans,miNumIdioma,FALSE)","v":"Seno hiperbólico (CTRL+S)"},null,{"$f":"IFERROR(I87&\" - \"&INDIRECT(\"Teclas\"&I87&\"!$A$1\"),\"\")","v":""},85]
["Teclach","cosh","CTRL+o","^o","TK_cosh",{"$f":"VLOOKUP(Idiomas!$A$93,Trans,miNumIdioma,FALSE)","v":"Coseno hiperbólico (CTRL+O)"},null,{"$f":"IFERROR(I88&\" - \"&INDIRECT(\"Teclas\"&I88&\"!$A$1\"),\"\")","v":""},86]
["Teclath","tanh","CTRL+t","^t","TK_tanh",{"$f":"VLOOKUP(Idiomas!$A$94,Trans,miNumIdioma,FALSE)","v":"Tangente hiperbólica (CTRL+T)"},null,{"$f":"IFERROR(I89&\" - \"&INDIRECT(\"Teclas\"&I89&\"!$A$1\"),\"\")","v":""},87]
["Teclasi","asinh","CTRL+SHIFT+s","+^s","TK_asinh",{"$f":"VLOOKUP(Idiomas!$A$95,Trans,miNumIdioma,FALSE)","v":"Arco seno hiperbólico (CTRL+MAYÚS+S)"},null,{"$f":"IFERROR(I90&\" - \"&INDIRECT(\"Teclas\"&I90&\"!$A$1\"),\"\")","v":""},88]
["Teclaci","acosh","CTRL+SHIFT+o","+^o","TK_acosh",{"$f":"VLOOKUP(Idiomas!$A$96,Trans,miNumIdioma,FALSE)","v":"Arco coseno hiperbólico (CTRL+MAYÚS+O)"},null,{"$f":"IFERROR(I91&\" - \"&INDIRECT(\"Teclas\"&I91&\"!$A$1\"),\"\")","v":""},89]
["Teclati","atanh","CTRL+SHIFT+t","+^t","TK_atanh",{"$f":"VLOOKUP(Idiomas!$A$97,Trans,miNumIdioma,FALSE)","v":"Arco tangente hiperbólica (CTRL+MAYÚS+T)"},null,{"$f":"IFERROR(I92&\" - \"&INDIRECT(\"Teclas\"&I92&\"!$A$1\"),\"\")","v":""},90]
["Teclamo","mod","SHIFT+D","+d","TK_mod",{"$f":"VLOOKUP(Idiomas!$A$98,Trans,miNumIdioma,FALSE)","v":"Módulo (MAYÚS+D)"},null,{"$f":"IFERROR(I93&\" - \"&INDIRECT(\"Teclas\"&I93&\"!$A$1\"),\"\")","v":""},91]
["Teclal2","log2","SHIFT+2","+2","TK_log2",{"$f":"VLOOKUP(Idiomas!$A$99,Trans,miNumIdioma,FALSE)","v":"Logaritmo en base 2 (MAYÚS+2)"},null,{"$f":"IFERROR(I94&\" - \"&INDIRECT(\"Teclas\"&I94&\"!$A$1\"),\"\")","v":""},92]
["Teclaly","logy","SHIFT+l","+l","TK_logy",{"$f":"VLOOKUP(Idiomas!$A$100,Trans,miNumIdioma,FALSE)","v":"Logaritmo en base y (MAYÚS+L)"},null,{"$f":"IFERROR(I95&\" - \"&INDIRECT(\"Teclas\"&I95&\"!$A$1\"),\"\")","v":""},93]
["TeclaZ1","Zoom","CTRL+Z","^z","TK_Zoom","Zoom (CTRL+Z)",null,{"$f":"IFERROR(I96&\" - \"&INDIRECT(\"Teclas\"&I96&\"!$A$1\"),\"\")","v":""},94]
["TeclaZ-","Zoom -","CTRL+-","^-","TK_ZoomNeg","Zoom - (CTRL+-)",null,{"$f":"IFERROR(I97&\" - \"&INDIRECT(\"Teclas\"&I97&\"!$A$1\"),\"\")","v":""},95]
["TeclaZ%","Zoom 100%","CTRL+0","^0","TK_Zoom100","Zoom 100% (CTRL+0)",null,{"$f":"IFERROR(I98&\" - \"&INDIRECT(\"Teclas\"&I98&\"!$A$1\"),\"\")","v":""},96]
["TeclaZ+","Zoom +","CTRL++","^{+}","TK_ZoomPos","Zoom + (CTRL++)",null,{"$f":"IFERROR(I99&\" - \"&INDIRECT(\"Teclas\"&I99&\"!$A$1\"),\"\")","v":""},97]
["TeclaDT",{"$f":"VLOOKUP(Idiomas!$A$104,Trans,miNumIdioma,FALSE)","v":"Fecha y hora"},"CTRL+H","^h","TK_DT",{"$f":"VLOOKUP(Idiomas!$A$105,Trans,miNumIdioma,FALSE)","v":"Fecha y hora (CTRL+H)"},null,{"$f":"IFERROR(I100&\" - \"&INDIRECT(\"Teclas\"&I100&\"!$A$1\"),\"\")","v":""},98]
[null,"(","(",null,null,null,null,{"$f":"IFERROR(I101&\" - \"&INDIRECT(\"Teclas\"&I101&\"!$A$1\"),\"\")","v":""},99]
[null,")",")"]
[null,"A-F","A-F"]
[null,"And","&"]
[null,"Ave","CTRL+A"]
[null,"Bin","F8"]
[null,"Byte","F4"]
[null,"Dat","INS"]
[null,"Dec","F6"]
[null,"Int",";"]
[null,"dms","m"]
[null,"Dword","F2"]
[null,"Exp","x"]
[null,"F-E","v"]
[null,"Centesimal","F4"]
[null,"Hexadecimal","F5"]
[null,"Lsh","<"]
[null,"Mod","%"]
[null,"Not","~"]
[null,"Oct","F7"]
[null,"O bien","| (canalización)"]
[null,"Qword","F12"]
[null,"s","CTRL+D"]
[null,"Sta","CTRL+S"]
[null,"Sum","CTRL+T"]
[null,"Word","F3"]
[null,"Xor","^"]

{"sheet":"Teclas0","index":5,"n_rows":15,"n_cols":11,"rows_kept":15,"cut":false,"hidden":false,"merged":[]}
[{"$f":"VLOOKUP(Idiomas!$A$6,Trans,miNumIdioma,FALSE)","v":"Calculadora táctil"},"Text","Font","Color","Size","Style","Top","Left","Width","Height","Visible"]
["TeclaGP","=","Webdings",0,11,"Regular",112,831,68,20,1]
["TeclaRP",4,"Webdings",0,11,"Regular",112,756,68,20,1]
["Teclaes",{"$f":"VLOOKUP(Idiomas!$A$73,Trans,miNumIdioma,FALSE)","v":"Ayuda 1 de 9:\nBienvenido a la calculadora táctil\ncon teclas flotantes personalizables\n(Presiona esta tecla o la barra espaciadora)"},"Arial",13395456,24,"Bold",200,306,550,170,1]
["Tecla<-","Å","Wingdings 3",0,28,"Bold",439,156,68,68,1]
["Tecla->","Æ","Wingdings 3",0,24,"Bold",139,156,68,68,1]
["Teclav>","È","Wingdings 3",0,28,"Bold",364,156,68,68,1]
["Teclao>","®","Arial",0,24,"Bold",289,156,68,68,1]
["Tecla^>","Ç","Wingdings 3",0,28,"Regular",214,156,68,68,1]
["TeclaTR","8","Wingdings",0,11,"Regular",514,156,68,20,1]
["TeclaZ1","Zoom","Arial",0,9,"Bold",112,156,51,20,1]
["TeclaZ-","-","Arial",0,9,"Bold",112,207,24,20,1]
["TeclaZ%","100%","Arial",0,9,"Bold",112,231,51,20,1]
["TeclaZ+","+","Arial",0,9,"Bold",112,282,24,20,1]
["TeclaDT",{"$f":"VLOOKUP(Idiomas!$A$104,Trans,miNumIdioma,FALSE)","v":"Fecha y hora"},"Arial",0,9,"Bold",112,330,80,20,1]

{"sheet":"Teclas1","index":6,"n_rows":62,"n_cols":11,"rows_kept":62,"cut":false,"hidden":false,"merged":[]}
[{"$f":"VLOOKUP(Idiomas!$A$7,Trans,miNumIdioma,FALSE)","v":"Mi primera calculadora"},"Text","Font","Color","Size","Style","Top","Left","Width","Height","Visible"]
["TeclaCA","CA","Arial",255,24,"Bold",139,531,68,68,1]
["Tecla/","÷","Arial",255,36,"Bold",139,606,68,68,1]
["Teclax","×","Arial",255,36,"Bold",139,681,68,68,1]
["Tecla-","-","Arial",255,36,"Bold",139,756,68,68,1]
["Tecla.",",","Arial",12611584,28,"Bold",439,681,68,68,1]
["Tecla3","3","Arial",12611584,28,"Bold",364,681,68,68,1]
["Tecla2","2","Arial",12611584,28,"Bold",364,606,68,68,1]
["Tecla1","1","Arial",12611584,28,"Bold",364,531,68,68,1]
["Tecla6","6","Arial",12611584,28,"Bold",289,681,68,68,1]
["Tecla5","5","Arial",12611584,28,"Bold",289,606,68,68,1]
["Tecla4","4","Arial",12611584,28,"Bold",289,531,68,68,1]
["Tecla9","9","Arial",12611584,28,"Bold",214,681,68,68,1]
["Tecla8","8","Arial",12611584,28,"Bold",214,606,68,68,1]
["Tecla7","7","Arial",12611584,28,"Bold",214,531,68,68,1]
["Tecla0","0","Arial",12611584,28,"Bold",439,531,143,68,1]
["Tecla+","+","Arial",255,36,"Bold",214,756,68,143,1]
["Tecla=","=","Arial",255,36,"Bold",364,756,68,143,1]
["Teclan","+/-","Arial",13395456,28,"Bold",439,831,68,68,1]
["TeclaPi","p","Symbol",13395456,28,"Bold",139,831,68,68,1]
["Teclar","Ö","Symbol",13395456,28,"Bold",214,831,68,68,1]
["Tecla%","%","Arial",13395456,28,"Bold",289,831,68,68,1]
["Teclai","1/x","Arial",13395456,24,"Bold",364,831,68,68,1]
["TeclaTC",":      :      :      :","Wingdings",0,11,"Regular",514,531,293,20,1]
["TeclaM+","M+","Arial",255,20,"Bold",439,456,68,68,1]
["TeclaCE","CE","Arial",255,24,"Bold",139,456,68,68,1]
["TeclaM-","M-","Arial",255,20,"Bold",364,456,68,68,1]
["TeclaMR","MR","Arial",255,20,"Bold",289,456,68,68,1]
["TeclaMC","MC","Arial",255,20,"Bold",214,456,68,68,1]
["Teclan!","n!","Arial",8388736,20,"Bold",439,306,68,68,1]
["Teclax1","10^x","Arial",8388736,14,"Bold",214,381,68,68,1]
["Teclalg","log","Arial",8388736,20,"Bold",364,306,68,68,1]
["TeclaCL","CL","Arial",255,24,"Bold",139,381,68,68,1]
["Teclaln","ln","Arial",8388736,20,"Bold",289,306,68,68,1]
["Teclax2","x^2","Arial",8388736,20,"Bold",439,381,68,68,1]
["Teclaex","e^x","Arial",8388736,20,"Bold",214,306,68,68,1]
["Teclax3","x^3","Arial",8388736,20,"Bold",364,381,68,68,1]
["Teclae","e","Arial",13395456,28,"Bold",139,306,68,68,1]
["Teclaxy","x^y","Arial",8388736,20,"Bold",289,381,68,68,1]
["Teclatn","tan","Arial",8388736,20,"Bold",439,231,68,68,1]
["TeclaIH","Inv/ Hyp","Arial",0,18,"Bold",214,231,68,68,1]
["Teclacs","cos","Arial",8388736,20,"Bold",364,231,68,68,1]
["TeclaGR","Gra","Arial",0,18,"Bold",139,231,68,68,1]
["Teclasn","sin","Arial",8388736,20,"Bold",289,231,68,68,1]
["Tecla<-","Å","Wingdings 3",0,28,"Bold",439,156,68,68,1]
["Tecla->","Æ","Wingdings 3",0,24,"Bold",139,156,68,68,1]
["Teclav>","È","Wingdings 3",0,28,"Bold",364,156,68,68,1]
["Teclao>","®","Arial",0,24,"Bold",289,156,68,68,1]
["Tecla^>","Ç","Wingdings 3",0,28,"Regular",214,156,68,68,1]
["TeclaTM","<","Wingdings",0,11,"Regular",514,456,68,20,1]
["TeclaTR","8","Wingdings",0,11,"Regular",514,156,68,20,1]
["TeclaTT","7","Wingdings",0,11,"Regular",514,831,68,20,1]
["TeclaTL","&","Wingdings",0,11,"Regular",514,306,68,20,1]
["TeclaTS","$","Wingdings",0,11,"Regular",514,231,68,20,1]
["TeclaTP","!","Wingdings",0,11,"Regular",514,381,68,20,1]
["TeclaGP","=","Webdings",0,11,"Regular",112,831,68,20,1]
["TeclaRP",4,"Webdings",0,11,"Regular",112,756,68,20,1]
["TeclaZ1","Zoom","Arial",0,9,"Bold",112,156,51,20,1]
["TeclaZ-","-","Arial",0,9,"Bold",112,207,24,20,1]
["TeclaZ%","100%","Arial",0,9,"Bold",112,231,51,20,1]
["TeclaZ+","+","Arial",0,9,"Bold",112,282,24,20,1]
["TeclaDT",{"$f":"VLOOKUP(Idiomas!$A$104,Trans,miNumIdioma,FALSE)","v":"Fecha y hora"},"Arial",0,9,"Bold",112,330,80,20,1]

{"sheet":"Teclas2","index":7,"n_rows":63,"n_cols":11,"rows_kept":63,"cut":false,"hidden":false,"merged":[]}
[{"$f":"VLOOKUP(Idiomas!$A$8,Trans,miNumIdioma,FALSE)","v":"Calculadora Microsoft"},"Text","Font","Color","Size","Style","Top","Left","Width","Height","Visible"]
["TeclaCA","C","Arial",255,24,"Bold",139,784,116,68,1]
["Tecla/","/","Arial",255,36,"Bold",214,756,68,68,1]
["Teclax","x","Arial",255,36,"Bold",289,756,68,68,1]
["Tecla-","-","Arial",255,36,"Bold",364,756,68,68,1]
["Tecla.",".","Arial",12611584,28,"Bold",439,681,68,68,1]
["Tecla3",3,"Arial",12611584,28,"Bold",364,681,68,68,1]
["Tecla2",2,"Arial",12611584,28,"Bold",364,606,68,68,1]
["Tecla1",1,"Arial",12611584,28,"Bold",364,531,68,68,1]
["Tecla6",6,"Arial",12611584,28,"Bold",289,681,68,68,1]
["Tecla5",5,"Arial",12611584,28,"Bold",289,606,68,68,1]
["Tecla4",4,"Arial",12611584,28,"Bold",289,531,68,68,1]
["Tecla9",9,"Arial",12611584,28,"Bold",214,681,68,68,1]
["Tecla8",8,"Arial",12611584,28,"Bold",214,606,68,68,1]
["Tecla7",7,"Arial",12611584,28,"Bold",214,531,68,68,1]
["Tecla0",0,"Arial",12611584,28,"Bold",439,531,68,68,1]
["Tecla+","+","Arial",255,36,"Bold",439,756,68,68,1]
["Tecla=","=","Arial",255,36,"Bold",439,831,68,68,1]
["Teclan","+/-","Arial",13395456,28,"Bold",439,606,68,68,1]
["TeclaPi","p","Symbol",13395456,28,"Bold",139,306,68,68,1]
["Teclar","Ö","Symbol",13395456,28,"Bold",214,831,68,68,1]
["Tecla%","%","Arial",13395456,28,"Bold",289,831,68,68,1]
["Teclai","1/x","Arial",13395456,24,"Bold",364,831,68,68,1]
["TeclaTC",":      :      :      :","Wingdings",0,11,"Regular",514,531,294,20,1]
["TeclaM+","M+","Arial",255,20,"Bold",364,456,68,68,1]
["TeclaM-","M-","Arial",255,20,"Bold",439,456,68,68,1]
["TeclaCE","CE","Arial",255,24,"Bold",139,658,116,68,1]
["TeclaMS","MS","Arial",255,20,"Bold",289,456,68,68,1]
["TeclaMR","MR","Arial",255,20,"Bold",214,456,68,68,1]
["TeclaMC","MC","Arial",255,20,"Bold",139,456,68,68,1]
["Teclan!","n!","Arial",8388736,20,"Bold",439,381,68,68,1]
["Teclax1","10^x","Arial",8388736,14,"Bold",214,306,68,68,1]
["Teclalg","log","Arial",8388736,20,"Bold",364,381,68,68,1]
["TeclaCL","←","Arial",255,36,"Bold",139,531,116,68,1]
["Teclaln","ln","Arial",8388736,20,"Bold",289,381,68,68,1]
["Teclax2","x^2","Arial",8388736,20,"Bold",439,306,68,68,1]
["Teclaex","e^x","Arial",8388736,20,"Bold",214,381,68,68,1]
["Teclax3","x^3","Arial",8388736,20,"Bold",364,306,68,68,1]
["Teclae","e","Arial",13395456,28,"Bold",139,381,68,68,1]
["Teclaxy","x^y","Arial",8388736,20,"Bold",289,306,68,68,1]
["Teclatn","tan","Arial",8388736,20,"Bold",439,231,68,68,1]
["TeclaIH","Inv/ Hyp","Arial",0,18,"Bold",214,231,68,68,1]
["Teclacs","cos","Arial",8388736,20,"Bold",364,231,68,68,1]
["TeclaGR","Gra","Arial",0,18,"Bold",139,231,68,68,1]
["Teclasn","sin","Arial",8388736,20,"Bold",289,231,68,68,1]
["Tecla<-","Å","Wingdings 3",0,28,"Bold",439,156,68,68,1]
["Tecla->","Æ","Wingdings 3",0,24,"Bold",139,156,68,68,1]
["Teclav>","È","Wingdings 3",0,28,"Bold",364,156,68,68,1]
["Teclao>","®","Arial",0,24,"Bold",289,156,68,68,1]
["Tecla^>","Ç","Wingdings 3",0,28,"Regular",214,156,68,68,1]
["TeclaTM","<","Wingdings",0,11,"Regular",514,456,68,20,1]
["TeclaTR",8,"Wingdings",0,11,"Regular",514,156,68,20,1]
["TeclaTT",7,"Wingdings",0,11,"Regular",514,831,68,20,1]
["TeclaTL","&","Wingdings",0,11,"Regular",514,381,68,20,1]
["TeclaTS","$","Wingdings",0,11,"Regular",514,231,68,20,1]
["TeclaTP","!","Wingdings",0,11,"Regular",514,306,68,20,1]
["TeclaGP","=","Webdings",0,11,"Regular",112,831,68,20,1]
["TeclaRP",4,"Webdings",0,11,"Regular",112,756,68,20,1]
["TeclaZ1","Zoom","Arial",0,9,"Bold",112,156,51,20,1]
["TeclaZ-","-","Arial",0,9,"Bold",112,207,24,20,1]
["TeclaZ%","100%","Arial",0,9,"Bold",112,231,51,20,1]
["TeclaZ+","+","Arial",0,9,"Bold",112,282,24,20,1]
["TeclaDT",{"$f":"VLOOKUP(Idiomas!$A$104,Trans,miNumIdioma,FALSE)","v":"Fecha y hora"},"Arial",0,9,"Bold",112,330,80,20,1]

{"sheet":"Teclas3","index":8,"n_rows":63,"n_cols":11,"rows_kept":63,"cut":false,"hidden":false,"merged":[]}
[{"$f":"VLOOKUP(Idiomas!$A$9,Trans,miNumIdioma,FALSE)","v":"Calculadora Celular"},"Text","Font","Color","Size","Style","Top","Left","Width","Height","Visible"]
["TeclaCA","AC","Arial",255,24,"Bold",139,782,116,68,1]
["Tecla/","÷","Arial",255,36,"Bold",439,756,68,68,1]
["Teclax","x","Arial",255,36,"Bold",364,756,68,68,1]
["Tecla-","-","Arial",255,36,"Bold",289,756,68,68,1]
["Tecla.",".","Arial",12611584,28,"Bold",439,531,68,68,1]
["Tecla3",3,"Arial",12611584,28,"Bold",214,681,68,68,1]
["Tecla2",2,"Arial",12611584,28,"Bold",214,606,68,68,1]
["Tecla1",1,"Arial",12611584,28,"Bold",214,531,68,68,1]
["Tecla6",6,"Arial",12611584,28,"Bold",289,681,68,68,1]
["Tecla5",5,"Arial",12611584,28,"Bold",289,606,68,68,1]
["Tecla4",4,"Arial",12611584,28,"Bold",289,531,68,68,1]
["Tecla9",9,"Arial",12611584,28,"Bold",364,681,68,68,1]
["Tecla8",8,"Arial",12611584,28,"Bold",364,606,68,68,1]
["Tecla7",7,"Arial",12611584,28,"Bold",364,531,68,68,1]
["Tecla0",0,"Arial",12611584,28,"Bold",439,606,68,68,1]
["Tecla+","+","Arial",255,36,"Bold",214,756,68,68,1]
["Tecla=","=","Arial",255,36,"Bold",439,831,68,68,1]
["Teclan","+/-","Arial",13395456,28,"Bold",439,681,68,68,1]
["TeclaPi","p","Symbol",13395456,28,"Bold",139,381,68,68,1]
["Teclar","Ö","Symbol",12611584,28,"Bold",214,831,68,68,1]
["Tecla%","%","Arial",13395456,28,"Bold",289,831,68,68,1]
["Teclai","1/x","Arial",13395456,24,"Bold",364,831,68,68,1]
["TeclaTC","(      (      (      (","Wingdings",0,11,"Regular",514,531,294,20,1]
["TeclaM+","M+","Arial",255,20,"Bold",439,456,68,68,1]
["TeclaCE","C","Arial",255,24,"Bold",139,656,116,68,1]
["TeclaM-","M-","Arial",255,20,"Bold",364,456,68,68,1]
["TeclaMR","MR","Arial",255,20,"Bold",289,456,68,68,1]
["TeclaMC","MC","Arial",255,20,"Bold",214,456,68,68,1]
["Teclan!","n!","Arial",8388736,20,"Bold",364,381,68,68,1]
["Teclax1","10^x","Arial",8388736,14,"Bold",364,306.00009156273399,68,68,1]
["Teclalg","log","Arial",8388736,20,"Bold",364,231,68,68,1]
["TeclaCL","←","Arial",255,36,"Bold",139,531,116,68,1]
["Teclaln","ln","Arial",8388736,20,"Bold",289,231,68,68,1]
["Teclax2","x^2","Arial",8388736,20,"Bold",439,231,68,68,1]
["Teclaex","e^x","Arial",8388736,20,"Bold",289,306,68,68,1]
["Teclax3","x^3","Arial",8388736,20,"Bold",439,306,68,68,1]
["Teclae","e","Arial",13395456,28,"Bold",289,381,68,68,1]
["Teclaxy","x^y","Arial",8388736,20,"Bold",439,381.00009156273399,68,68,1]
["Teclatn","tan","Arial",8388736,20,"Bold",214,381,68,68,1]
["TeclaIH","Inv/ Hyp","Arial",0,18,"Bold",139,306.00009156273399,68,68,1]
["Teclacs","cos","Arial",8388736,20,"Bold",214,306.00009156273399,68,68,1]
["TeclaGR","Gra","Arial",0,18,"Bold",139,231,68,68,1]
["Teclasn","sin","Arial",8388736,20,"Bold",214,231,68,68,1]
["Tecla<-","Å","Wingdings 3",0,28,"Bold",439,156,68,68,1]
["Tecla->","Æ","Wingdings 3",0,24,"Bold",139,156,68,68,1]
["Teclav>","È","Wingdings 3",0,28,"Bold",364,156,68,68,1]
["Teclao>","®","Arial",0,24,"Bold",289,156,68,68,1]
["Tecla^>","Ç","Wingdings 3",0,28,"Regular",214,156,68,68,1]
["TeclaTM","<","Wingdings",0,11,"Regular",514,456,68,20,1]
["TeclaTR",8,"Wingdings",0,11,"Regular",514,156,68,20,1]
["TeclaTT",7,"Wingdings",0,11,"Regular",514,831,68,20,1]
["TeclaTL","&","Wingdings",0,11,"Regular",514,306,67.999923706054688,20,1]
["TeclaTS","$","Wingdings",0,11,"Regular",514,231,68,20,1]
["TeclaTP","!","Wingdings",0,11,"Regular",514,381,68,20,1]
["TeclaGP","=","Webdings",0,11,"Regular",112,831,68,20,1]
["TeclaRP",4,"Webdings",0,11,"Regular",112,756,68,20,1]
["Teclale","Rnd","Arial",13395456,18,"Bold",139,456,68,68,1]
["TeclaZ1","Zoom","Arial",0,9,"Bold",112,156,51,20,1]
["TeclaZ-","-","Arial",0,9,"Bold",112,207,24,20,1]
["TeclaZ%","100%","Arial",0,9,"Bold",112,231,51,20,1]
["TeclaZ+","+","Arial",0,9,"Bold",112,282,24,20,1]
["TeclaDT",{"$f":"VLOOKUP(Idiomas!$A$104,Trans,miNumIdioma,FALSE)","v":"Fecha y hora"},"Arial",0,9,"Bold",112,330,80,20,1]

{"sheet":"Teclas4","index":9,"n_rows":27,"n_cols":11,"rows_kept":27,"cut":false,"hidden":false,"merged":[]}
[{"$f":"VLOOKUP(Idiomas!$A$10,Trans,miNumIdioma,FALSE)","v":"Mini-Calculadora"},"Text","Font","Color","Size","Style","Top","Left","Width","Height","Visible"]
["TeclaCA","Borra todo","Arial",255,18,"Bold",141,756,141,68,1]
["Tecla/","÷\n\nDivide","Arial",255,16,"Bold",439,716,102,102,1]
["Teclax","x\n\nMultiplica","Arial",255,16,"Bold",321,716,102,102,1]
["Tecla-","_\n\nResta","Arial",255,16,"Bold",439,596,102,102,1]
["Tecla.",".","Arial",12611584,28,"Bold",230,631,68,68,1]
["Tecla3",3,"Arial",12611584,28,"Bold",358,476,102,102,1]
["Tecla2",2,"Arial",12611584,28,"Bold",358,361,102,102,1]
["Tecla1",1,"Arial",12611584,28,"Bold",358,251,102,102,1]
["Tecla6",6,"Arial",12611584,28,"Bold",243,476,102,102,1]
["Tecla5",5,"Arial",12611584,28,"Bold",243,361,102,102,1]
["Tecla4",4,"Arial",12611584,28,"Bold",243,251,102,102,1]
["Tecla9",9,"Arial",12611584,28,"Bold",129,476,102,102,1]
["Tecla8",8,"Arial",12611584,28,"Bold",129,361,102,102,1]
["Tecla7",7,"Arial",12611584,28,"Bold",129,251,102,102,1]
["Tecla0",0,"Arial",12611584,28,"Bold",473,251,326,68,1]
["Tecla+","+\n\nSuma","Arial",255,16,"Bold",321,596,102,102,1]
["Tecla=","=","Arial",255,36,"Bold",321,831,68,220,1]
["TeclaCL","Retrocede","Arial",255,18,"Bold",230,756,141,68,1]
["TeclaGP","=","Webdings",0,11,"Regular",112,831,68,20,1]
["TeclaRP",4,"Webdings",0,11,"Regular",112,756,68,20,1]
["Teclale","Número Aleatorio","Arial",13395456,18,"Bold",141,596,141,68,1]
["TeclaZ1","Zoom","Arial",0,9,"Bold",112,156,51,20,1]
["TeclaZ-","-","Arial",0,9,"Bold",112,207,24,20,1]
["TeclaZ%","100%","Arial",0,9,"Bold",112,231,51,20,1]
["TeclaZ+","+","Arial",0,9,"Bold",112,282,24,20,1]
["TeclaDT",{"$f":"VLOOKUP(Idiomas!$A$104,Trans,miNumIdioma,FALSE)","v":"Fecha y hora"},"Arial",0,9,"Bold",112,330,80,20,1]

{"sheet":"Teclas5","index":10,"n_rows":73,"n_cols":11,"rows_kept":73,"cut":false,"hidden":false,"merged":[]}
[{"$f":"VLOOKUP(Idiomas!$A$82,Trans,miNumIdioma,FALSE)","v":"Calculadora Beta"},"Text","Font","Color","Size","Style","Top","Left","Width","Height","Visible"]
["TeclaCA","AC","Arial",255,24,"Bold",139,831,68,68,1]
["Tecla/","÷","Arial",255,36,"Bold",139,756.00006103515625,68,68,1]
["Teclax","x","Arial",255,36,"Bold",214,756.00006103515625,68,68,1]
["Tecla-","-","Arial",255,36,"Bold",289,756.00006103515625,68,68,1]
["Tecla.",".","Arial",12611584,28,"Bold",364,681,68,68,1]
["Tecla3",3,"Arial",12611584,28,"Bold",289,681,68,68,1]
["Tecla2",2,"Arial",12611584,28,"Bold",289,606,68,68,1]
["Tecla1",1,"Arial",12611584,28,"Bold",289,531,68,68,1]
["Tecla6",6,"Arial",12611584,28,"Bold",214,681,68,68,1]
["Tecla5",5,"Arial",12611584,28,"Bold",214,606,68,68,1]
["Tecla4",4,"Arial",12611584,28,"Bold",214,531,68,68,1]
["Tecla9",9,"Arial",12611584,28,"Bold",139,681,68,68,1]
["Tecla8",8,"Arial",12611584,28,"Bold",139,606,68,68,1]
["Tecla7",7,"Arial",12611584,28,"Bold",139,531,68,68,1]
["Tecla0",0,"Arial",12611584,28,"Bold",364,531,68,68,1]
["Tecla+","+","Arial",255,36,"Bold",364,756.00006103515625,68,68,1]
["Tecla=","=","Arial",255,36,"Bold",214,831,68,220,1]
["Teclan","+/-","Arial",13395456,28,"Bold",364,606,68,68,1]
["TeclaPi","p","Symbol",13395456,28,"Bold",139,306,68,68,1]
["Teclar","Ö","Symbol",12611584,28,"Bold",289,231,68,68,0]
["Tecla%","%","Arial",13395456,28,"Bold",439,681,68,68,1]
["Teclai","1/x","Arial",13395456,24,"Bold",139,381,68,68,1]
["TeclaTC",":      :      :      :      :","Wingdings",0,11,"Regular",514,531,368,20,1]
["TeclaM+","M+","Arial",255,20,"Bold",439,456.00009156273404,68,68,1]
["TeclaCE","C","Arial",255,24,"Bold",439,831,68,68,1]
["TeclaM-","M-","Arial",255,20,"Bold",364,456.00009156273404,68,68,1]
["TeclaMR","MR","Arial",255,20,"Bold",289,456.00009156273404,68,68,1]
["TeclaMC","MC","Arial",255,20,"Bold",214,456.00009156273404,68,68,1]
["Teclan!","n!","Arial",8388736,20,"Bold",439,606,68,68,1]
["TeclaCL","←","Arial",255,36,"Bold",439,756.00006103515625,68,68,1]
["Teclax2","x^2","Arial",8388736,20,"Bold",214,231,68,68,0]
["Teclax3","x^3","Arial",8388736,20,"Bold",214,306,68,68,0]
["Teclae","e","Arial",13395456,28,"Bold",139,231,68,68,0]
["Teclaxy","x^y","Arial",8388736,20,"Bold",214,381,68,68,0]
["Teclatn","tan","Arial",8388736,20,"Bold",214,381,68,68,1]
["Teclacs","cos","Arial",8388736,20,"Bold",214,306,68,68,1]
["Teclasn","sin","Arial",8388736,20,"Bold",214,231,68,68,1]
["Tecla<-","Å","Wingdings 3",0,28,"Bold",439,156,68,68,1]
["Tecla->","Æ","Wingdings 3",0,24,"Bold",139,156,68,68,1]
["Teclav>","È","Wingdings 3",0,28,"Bold",364,156,68,68,1]
["Teclao>","®","Arial",0,24,"Bold",289,156,68,68,1]
["Tecla^>","Ç","Wingdings 3",0,28,"Regular",214,156,68,68,1]
["TeclaTM","<","Wingdings",0,11,"Regular",514,456.00009156273404,68,20,1]
["TeclaTR",8,"Wingdings",0,11,"Regular",514,156,68,20,1]
["TeclaTG","$","Wingdings",0,11,"Regular",514,231,218,20,1]
["TeclaGP","=","Webdings",0,11,"Regular",112,831,68,20,1]
["TeclaRP",4,"Webdings",0,11,"Regular",112,756,68,20,1]
["Teclale","Rnd","Arial",13395456,18,"Bold",139,456.00009156273404,68,68,1]
["Teclar3","3Ö","Symbol",12611584,24,"Bold",289,306,68,68,0]
["Teclary","NÖ","Symbol",12611584,24,"Bold",289,381,68,68,0]
["Teclaat","atan","Arial",8388736,12,"Bold",289,381,68,68,1]
["Teclaac","acos","Arial",8388736,12,"Bold",289,306,68,68,1]
["Teclaas","asin","Arial",8388736,12,"Bold",289,231,68,68,1]
["Teclath","tanh","Arial",8388736,12,"Bold",364,381,68,68,1]
["Teclach","cosh","Arial",8388736,12,"Bold",364,306,68,68,1]
["Teclash","sinh","Arial",8388736,12,"Bold",364,231,68,68,1]
["Teclati","atanh","Arial",8388736,12,"Bold",439,381,68,68,1]
["Teclaci","acosh","Arial",8388736,12,"Bold",439,306,68,68,1]
["Teclasi","asinh","Arial",8388736,12,"Bold",439,231,68,68,1]
["TeclaGR","Gra","Arial",0,18,"Bold",139,231,68,68,1]
["Teclamo","Mod","Arial",8388736,16,"Bold",439,531,68,68,1]
["Teclax1","10^x","Arial",8388736,14,"Bold",364,231,68,68,0]
["Teclaex","e^x","Arial",8388736,20,"Bold",364,306,68,68,0]
["Teclalg","log","Arial",8388736,20,"Bold",439,231,68,68,0]
["Teclaln","ln","Arial",8388736,20,"Bold",439,306,68,68,0]
["Teclal2","log2","Arial",8388736,18,"Bold",364,381,68,68,0]
["Teclaly","logy","Arial",8388736,18,"Bold",439,381,68,68,0]
["TeclaZ1","Zoom","Arial",0,9,"Bold",112,156,51,20,1]
["TeclaZ-","-","Arial",0,9,"Bold",112,207,24,20,1]
["TeclaZ%","100%","Arial",0,9,"Bold",112,231,51,20,1]
["TeclaZ+","+","Arial",0,9,"Bold",112,282,24,20,1]
["TeclaDT",{"$f":"VLOOKUP(Idiomas!$A$104,Trans,miNumIdioma,FALSE)","v":"Fecha y hora"},"Arial",0,9,"Bold",112,330,80,20,1]

{"sheet":"Teclas6","index":11,"n_rows":73,"n_cols":11,"rows_kept":73,"cut":false,"hidden":false,"merged":[]}
[{"$f":"VLOOKUP(Idiomas!$A$101,Trans,miNumIdioma,FALSE)","v":"Calculadora Completa"},"Text","Font","Color","Size","Style","Top","Left","Width","Height","Visible"]
["TeclaCA","AC","Arial",255,24,"Bold",139,831,68,68,1]
["Tecla/","÷","Arial",255,36,"Bold",139,756,68,68,1]
["Teclax","x","Arial",255,36,"Bold",214,756,68,68,1]
["Tecla-","-","Arial",255,36,"Bold",290,756,68,68,1]
["Tecla.",".","Arial",12611584,28,"Bold",366,681,68,68,1]
["Tecla3",3,"Arial",12611584,28,"Bold",290,681,68,68,1]
["Tecla2",2,"Arial",12611584,28,"Bold",290,606,68,68,1]
["Tecla1",1,"Arial",12611584,28,"Bold",290,531,68,68,1]
["Tecla6",6,"Arial",12611584,28,"Bold",214,681,68,68,1]
["Tecla5",5,"Arial",12611584,28,"Bold",214,606,68,68,1]
["Tecla4",4,"Arial",12611584,28,"Bold",214,531,68,68,1]
["Tecla9",9,"Arial",12611584,28,"Bold",139,681,68,68,1]
["Tecla8",8,"Arial",12611584,28,"Bold",139,606,68,68,1]
["Tecla7",7,"Arial",12611584,28,"Bold",139,531,68,68,1]
["Tecla0",0,"Arial",12611584,28,"Bold",366,531,68,68,1]
["Tecla+","+","Arial",255,36,"Bold",366,756,68,68,1]
["Tecla=","=","Arial",255,36,"Bold",214,831,68,220,1]
["Teclan","+/-","Arial",13395456,28,"Bold",366,606,68,68,1]
["TeclaPi","p","Symbol",13395456,28,"Bold",165,231,68,42,1]
["Teclar","Ö","Symbol",12611584,28,"Bold",315,231,68,42,1]
["Tecla%","%","Arial",13395456,28,"Bold",439,681,68,68,1]
["Teclai","1/x","Arial",13395456,24,"Bold",139,381,68,68,1]
["TeclaTC",":      :      :      :      :","Wingdings",0,11,"Regular",514,531,368,20,1]
["TeclaM+","M+","Arial",255,20,"Bold",439,456.00009156273404,68,68,1]
["TeclaCE","C","Arial",255,24,"Bold",439,831,68,68,1]
["TeclaM-","M-","Arial",255,20,"Bold",366,456.00009156273404,68,68,1]
["TeclaMR","MR","Arial",255,20,"Bold",290,456.00009156273404,68,68,1]
["TeclaMC","MC","Arial",255,20,"Bold",214,456.00009156273404,68,68,1]
["Teclan!","n!","Arial",8388736,20,"Bold",439,606,68,68,1]
["TeclaCL","←","Arial",255,36,"Bold",439,756,68,68,1]
["Teclax2","x^2","Arial",8388736,20,"Bold",240,231,68,42,1]
["Teclax3","x^3","Arial",8388736,20,"Bold",240,306,68,42,1]
["Teclae","e","Arial",13395456,28,"Bold",139,306,68,68,1]
["Teclaxy","x^y","Arial",8388736,20,"Bold",240,381,68,42,1]
["Teclatn","tan","Arial",8388736,12,"Bold",214,381,68,25,1]
["Teclacs","cos","Arial",8388736,12,"Bold",214,306,68,25,1]
["Teclasn","sin","Arial",8388736,12,"Bold",214.00007629394531,231,68,25,1]
["Tecla<-","Å","Wingdings 3",0,28,"Bold",439,156,68,68,1]
["Tecla->","Æ","Wingdings 3",0,24,"Bold",139,156,68,68,1]
["Teclav>","È","Wingdings 3",0,28,"Bold",366,156,68,68,1]
["Teclao>","®","Arial",0,24,"Bold",290,156,68,68,1]
["Tecla^>","Ç","Wingdings 3",0,28,"Regular",214,156,68,68,1]
["TeclaTM","<","Wingdings",0,11,"Regular",514,456.00009156273404,68,20,1]
["TeclaTR",8,"Wingdings",0,11,"Regular",514,156,68,20,1]
["TeclaTG","$","Wingdings",0,11,"Regular",514,231,218,20,1]
["TeclaGP","=","Webdings",0,11,"Regular",112,831,68,20,1]
["TeclaRP",4,"Webdings",0,11,"Regular",112,756,68,20,1]
["Teclale","Rnd","Arial",13395456,18,"Bold",139,456.00009156273404,68,68,1]
["Teclar3","3Ö","Symbol",12611584,24,"Bold",315,306,68,42,1]
["Teclary","NÖ","Symbol",12611584,24,"Bold",315,381,68,42,1]
["Teclaat","atan","Arial",8388736,12,"Bold",290.00009155273438,381,68,25,1]
["Teclaac","acos","Arial",8388736,12,"Bold",290.00009155273438,306,68,25,1]
["Teclaas","asin","Arial",8388736,12,"Bold",290.00009155273438,231,68,25,1]
["Teclath","tanh","Arial",8388736,12,"Bold",366.00009155273438,381,68,25,1]
["Teclach","cosh","Arial",8388736,12,"Bold",366.00009155273438,306,68,25,1]
["Teclash","sinh","Arial",8388736,12,"Bold",366.00009155273438,231,68,25,1]
["Teclati","atanh","Arial",8388736,12,"Bold",439.00009155273398,381,68,25,1]
["Teclaci","acosh","Arial",8388736,12,"Bold",439.00009155273398,306,68,25,1]
["Teclasi","asinh","Arial",8388736,12,"Bold",439.00009155273398,231,68,25,1]
["TeclaGR","Gra","Arial",0,12,"Bold",139.00007629394531,231,68,25,1]
["Teclamo","Mod","Arial",8388736,16,"Bold",439,531,68,68,1]
["Teclax1","10^x","Arial",8388736,14,"Bold",392,231,68,42,1]
["Teclaex","e^x","Arial",8388736,20,"Bold",392,306,68,42,1]
["Teclalg","log","Arial",8388736,20,"Bold",466,231,68,42,1]
["Teclaln","ln","Arial",8388736,20,"Bold",466,306,68,42,1]
["Teclal2","log2","Arial",8388736,18,"Bold",392,381,68,42,1]
["Teclaly","logy","Arial",8388736,18,"Bold",466,381,68,42,1]
["TeclaZ1","Zoom","Arial",0,9,"Bold",112,156,51,20,1]
["TeclaZ-","-","Arial",0,9,"Bold",112,207,24,20,1]
["TeclaZ%","100%","Arial",0,9,"Bold",112,231,51,20,1]
["TeclaZ+","+","Arial",0,9,"Bold",112,282,24,20,1]
["TeclaDT",{"$f":"VLOOKUP(Idiomas!$A$104,Trans,miNumIdioma,FALSE)","v":"Fecha y hora"},"Arial",0,9,"Bold",112,330,80,20,1]

{"sheet":"Teclas7","index":12,"n_rows":73,"n_cols":11,"rows_kept":73,"cut":false,"hidden":false,"merged":[]}
[{"$f":"VLOOKUP(Idiomas!$A$103,Trans,miNumIdioma,FALSE)","v":"Calculadora sin teclas"},"Text","Font","Color","Size","Style","Top","Left","Width","Height","Visible"]
["TeclaCA","AC","Arial",255,24,"Bold",139,831,68,68,0]
["Tecla/","÷","Arial",255,36,"Bold",139,756,68,68,0]
["Teclax","x","Arial",255,36,"Bold",214,756,68,68,0]
["Tecla-","-","Arial",255,36,"Bold",290,756,68,68,0]
["Tecla.",".","Arial",12611584,28,"Bold",366,681,68,68,0]
["Tecla3",3,"Arial",12611584,28,"Bold",290,681,68,68,0]
["Tecla2",2,"Arial",12611584,28,"Bold",290,606,68,68,0]
["Tecla1",1,"Arial",12611584,28,"Bold",290,531,68,68,0]
["Tecla6",6,"Arial",12611584,28,"Bold",214,681,68,68,0]
["Tecla5",5,"Arial",12611584,28,"Bold",214,606,68,68,0]
["Tecla4",4,"Arial",12611584,28,"Bold",214,531,68,68,0]
["Tecla9",9,"Arial",12611584,28,"Bold",139,681,68,68,0]
["Tecla8",8,"Arial",12611584,28,"Bold",139,606,68,68,0]
["Tecla7",7,"Arial",12611584,28,"Bold",139,531,68,68,0]
["Tecla0",0,"Arial",12611584,28,"Bold",366,531,68,68,0]
["Tecla+","+","Arial",255,36,"Bold",366,756,68,68,0]
["Tecla=","=","Arial",255,36,"Bold",214,831,68,220,0]
["Teclan","+/-","Arial",13395456,28,"Bold",366,606,68,68,0]
["TeclaPi","p","Symbol",13395456,28,"Bold",139,306,68,68,0]
["Teclar","Ö","Symbol",12611584,28,"Bold",315,231,68,42,0]
["Tecla%","%","Arial",13395456,28,"Bold",439,681,68,68,0]
["Teclai","1/x","Arial",13395456,24,"Bold",139,381,68,68,0]
["TeclaTC",":      :      :      :      :","Wingdings",0,11,"Regular",514,531,368,20,0]
["TeclaM+","M+","Arial",255,20,"Bold",439,456.00009156273404,68,68,0]
["TeclaCE","C","Arial",255,24,"Bold",439,831,68,68,0]
["TeclaM-","M-","Arial",255,20,"Bold",366,456.00009156273404,68,68,0]
["TeclaMR","MR","Arial",255,20,"Bold",290,456.00009156273404,68,68,0]
["TeclaMC","MC","Arial",255,20,"Bold",214,456.00009156273404,68,68,0]
["Teclan!","n!","Arial",8388736,20,"Bold",439,606,68,68,0]
["TeclaCL","←","Arial",255,36,"Bold",439,756,68,68,0]
["Teclax2","x^2","Arial",8388736,20,"Bold",240,231,68,42,0]
["Teclax3","x^3","Arial",8388736,20,"Bold",240,306,68,42,0]
["Teclae","e","Arial",13395456,28,"Bold",165,231,68,42,0]
["Teclaxy","x^y","Arial",8388736,20,"Bold",240,381,68,42,0]
["Teclatn","tan","Arial",8388736,12,"Bold",214,381,68,25,0]
["Teclacs","cos","Arial",8388736,12,"Bold",214,306,68,25,0]
["Teclasn","sin","Arial",8388736,12,"Bold",214.00007629394531,231,68,25,0]
["Tecla<-","Å","Wingdings 3",0,28,"Bold",439,156,68,68,0]
["Tecla->","Æ","Wingdings 3",0,24,"Bold",139,156,68,68,0]
["Teclav>","È","Wingdings 3",0,28,"Bold",366,156,68,68,0]
["Teclao>","®","Arial",0,24,"Bold",290,156,68,68,0]
["Tecla^>","Ç","Wingdings 3",0,28,"Regular",214,156,68,68,0]
["TeclaTM","<","Wingdings",0,11,"Regular",514,456.00009156273404,68,20,0]
["TeclaTR",8,"Wingdings",0,11,"Regular",514,156,68,20,0]
["TeclaTG","$","Wingdings",0,11,"Regular",514,231,218,20,0]
["TeclaGP","=","Webdings",0,11,"Regular",112,831,68,20,1]
["TeclaRP",4,"Webdings",0,11,"Regular",112,756,68,20,1]
["Teclale","Rnd","Arial",13395456,18,"Bold",139,456.00009156273404,68,68,0]
["Teclar3","3Ö","Symbol",12611584,24,"Bold",315,306,68,42,0]
["Teclary","NÖ","Symbol",12611584,24,"Bold",315,381,68,42,0]
["Teclaat","atan","Arial",8388736,12,"Bold",290.00009155273438,381,68,25,0]
["Teclaac","acos","Arial",8388736,12,"Bold",290.00009155273438,306,68,25,0]
["Teclaas","asin","Arial",8388736,12,"Bold",290.00009155273438,231,68,25,0]
["Teclath","tanh","Arial",8388736,12,"Bold",366.00009155273438,381,68,25,0]
["Teclach","cosh","Arial",8388736,12,"Bold",366.00009155273438,306,68,25,0]
["Teclash","sinh","Arial",8388736,12,"Bold",366.00009155273438,231,68,25,0]
["Teclati","atanh","Arial",8388736,12,"Bold",439.00009155273398,381,68,25,0]
["Teclaci","acosh","Arial",8388736,12,"Bold",439.00009155273398,306,68,25,0]
["Teclasi","asinh","Arial",8388736,12,"Bold",439.00009155273398,231,68,25,0]
["TeclaGR","Gra","Arial",0,12,"Bold",139.00007629394531,231,68,25,0]
["Teclamo","Mod","Arial",8388736,16,"Bold",439,531,68,68,0]
["Teclax1","10^x","Arial",8388736,14,"Bold",392,231,68,42,0]
["Teclaex","e^x","Arial",8388736,20,"Bold",392,306,68,42,0]
["Teclalg","log","Arial",8388736,20,"Bold",466,231,68,42,0]
["Teclaln","ln","Arial",8388736,20,"Bold",466,306,68,42,0]
["Teclal2","log2","Arial",8388736,18,"Bold",392,381,68,42,0]
["Teclaly","logy","Arial",8388736,18,"Bold",466,381,68,42,0]
["TeclaZ1","Zoom","Arial",0,9,"Bold",112,156,51,20,1]
["TeclaZ-","-","Arial",0,9,"Bold",112,207,24,20,1]
["TeclaZ%","100%","Arial",0,9,"Bold",112,231,51,20,1]
["TeclaZ+","+","Arial",0,9,"Bold",112,282,24,20,1]
["TeclaDT",{"$f":"VLOOKUP(Idiomas!$A$104,Trans,miNumIdioma,FALSE)","v":"Fecha y hora"},"Arial",0,9,"Bold",112,330,80,20,1]

{"sheet":"Teclas8","index":13,"n_rows":45,"n_cols":11,"rows_kept":45,"cut":false,"hidden":false,"merged":[]}
[{"$f":"VLOOKUP(Idiomas!$A$107,Trans,miNumIdioma,FALSE)","v":"Calculadora básica"},"Text","Font","Color","Size","Style","Top","Left","Width","Height","Visible"]
["TeclaCA","C","Arial",255,24,"Bold",139,784,116,68,1]
["Tecla/","/","Arial",255,36,"Bold",214,756,68,68,1]
["Teclax","x","Arial",255,36,"Bold",289,756,68,68,1]
["Tecla-","-","Arial",255,36,"Bold",364,756,68,68,1]
["Tecla.",".","Arial",12611584,28,"Bold",439,606,68,68,1]
["Tecla3",3,"Arial",12611584,28,"Bold",364,681,68,68,1]
["Tecla2",2,"Arial",12611584,28,"Bold",364,606,68,68,1]
["Tecla1",1,"Arial",12611584,28,"Bold",364,531,68,68,1]
["Tecla6",6,"Arial",12611584,28,"Bold",289,681,68,68,1]
["Tecla5",5,"Arial",12611584,28,"Bold",289,606,68,68,1]
["Tecla4",4,"Arial",12611584,28,"Bold",289,531,68,68,1]
["Tecla9",9,"Arial",12611584,28,"Bold",214,681,68,68,1]
["Tecla8",8,"Arial",12611584,28,"Bold",214,606,68,68,1]
["Tecla7",7,"Arial",12611584,28,"Bold",214,531,68,68,1]
["Tecla0",0,"Arial",12611584,28,"Bold",439,531,68,68,1]
["Tecla+","+","Arial",255,36,"Bold",439,756,68,68,1]
["Tecla=","=","Arial",255,36,"Bold",439,831,68,68,1]
["Teclan","+/-","Arial",13395456,28,"Bold",439,681,68,68,1]
["Teclar","Ö","Symbol",13395456,28,"Bold",214,831,68,68,1]
["Tecla%","%","Arial",13395456,28,"Bold",289,831,68,68,1]
["Teclai","1/x","Arial",13395456,24,"Bold",364,831,68,68,1]
["TeclaTC",":      :      :      :","Wingdings",0,11,"Regular",514,531,294,20,1]
["TeclaM+","M+","Arial",255,20,"Bold",364,456,68,68,1]
["TeclaM-","M-","Arial",255,20,"Bold",439,456,68,68,1]
["TeclaCE","CE","Arial",255,24,"Bold",139,658,116,68,1]
["TeclaMS","MS","Arial",255,20,"Bold",289,456,68,68,1]
["TeclaMR","MR","Arial",255,20,"Bold",214,456,68,68,1]
["TeclaMC","MC","Arial",255,20,"Bold",139,456,68,68,1]
["TeclaCL","←","Arial",255,36,"Bold",139,531,116,68,1]
["Tecla<-","Å","Wingdings 3",0,28,"Bold",439,156,68,68,1]
["Tecla->","Æ","Wingdings 3",0,24,"Bold",139,156,68,68,1]
["Teclav>","È","Wingdings 3",0,28,"Bold",364,156,68,68,1]
["Teclao>","®","Arial",0,24,"Bold",289,156,68,68,1]
["Tecla^>","Ç","Wingdings 3",0,28,"Regular",214,156,68,68,1]
["TeclaTM","<","Wingdings",0,11,"Regular",514,456,68,20,1]
["TeclaTR",8,"Wingdings",0,11,"Regular",514,156,68,20,1]
["TeclaTT",7,"Wingdings",0,11,"Regular",514,831,68,20,1]
["TeclaGP","=","Webdings",0,11,"Regular",112,831,68,20,1]
["TeclaRP",4,"Webdings",0,11,"Regular",112,756,68,20,1]
["TeclaZ1","Zoom","Arial",0,9,"Bold",112,156,51,20,1]
["TeclaZ-","-","Arial",0,9,"Bold",112,207,24,20,1]
["TeclaZ%","100%","Arial",0,9,"Bold",112,231,51,20,1]
["TeclaZ+","+","Arial",0,9,"Bold",112,282,24,20,1]
["TeclaDT","Fecha y hora","Arial",0,9,"Bold",112,330,80,20,1]